Cogmind - Beta 16 @@@ ROGUE MODE // 2025.10.31 @ 23:13:16 Player: Dadrick Result: Defending 0bPrime! Performance ------------- Evolutions (8) 4000 Regions Visited (31) 6200 Robots Destroyed (299) 1495 Value Destroyed (11332) 11332 Prototype IDs (215) 4300 Alien Tech Used (8) 1600 Bonus (37934) 37934 TOTAL SCORE: 66861 Bonus ------- High Alert Combat Kills 3185 Follower Combat Kills 989 Registered with UFD 300 Met Optimus in HQ 500 Met Imprinter 300 Met Zhirov 300 Met Warlord at Base 500 MAIN.C Attacked Warlord 500 Warlord Defense Kills 2116 Hacked Protovariant 500 Scanned by Researcher 500 Destroyed Superfortress 15000 Met Optimus at Protoforge 1000 Completed Drillbomb Mission10000 Win 3000 Friendly Fire -756 Cogmind --------- Core Integrity 427/1450 Matter 290/300 Energy 220/220 System Corruption 6% Temperature Cool (0) Movement Flying (18) Location 0bPrime Parts ------- > --- POWER (2) -------- Concept Zero-point Core > --- PROPULSION (8) --- Impulse Thruster Array Impulse Thruster Array Experimental Surge Thruster Experimental Surge Thruster Concept Fieldthrust Drive Concept Fieldthrust Drive > --- UTILITY (10) ----- Concept Antigrav Storage Unit Experimental Optical Array Experimental Targeting Computer Experimental Core Analyzer Experimental Core Analyzer Centrium Light Armor Plating Graphene Brace A0-MCA's Component Scanner > --- WEAPON (3) ------- Concept Helical Railcannon Experimental Terror Saw > --- INVENTORY (25) --- Experimental Cesium-ion Thruster Impulse Thruster Array Experimental Biomechanical Wings Faulty Experimental Biomechanical Wings Experimental Surge Thruster Experimental Surge Thruster Experimental Reaction Control System Experimental Cloaking Device Centrium Light Armor Plating Crosscalibrator Concept Helical Railcannon Plasma Lance Experimental Jetlance Peak State ------------ > --- POWER ------------ Concept Zero-point Core > --- PROPULSION ------- Impulse Thruster Array Impulse Thruster Array Experimental Surge Thruster Experimental Surge Thruster Concept Fieldthrust Drive Concept Fieldthrust Drive > --- UTILITY ---------- Concept Antigrav Storage Unit Experimental Optical Array Experimental Signal Interpreter Experimental Targeting Computer Experimental Core Analyzer Experimental Core Analyzer Experimental Reaction Control System Centrium Light Armor Plating Graphene Brace A0-MCA's Component Scanner > --- WEAPON ----------- Concept Helical Railcannon Experimental Terror Saw > --- INVENTORY -------- Experimental Cesium-ion Thruster Impulse Thruster Array Impulse Thruster Array Experimental Biomechanical Wings Experimental Surge Thruster Experimental Surge Thruster Experimental Reaction Control System Experimental Cloaking Device Centrium Light Armor Plating Crosscalibrator Plasma Lance Experimental Jetlance UFD Drillbomb [Rating: 228] Favorites ----------- Power Heavy Ion Engine Engine Heavy Ion Engine Power Core Light Fission Core Reactor Light Antimatter Reactor Propulsion Aluminum Leg Leg Aluminum Leg Flight Unit Improved Cesium-ion Thruster Utility Large Storage Unit Device Advanced Sensor Array Storage Large Storage Unit Processor A0-MCA's Component Scanner Hackware Improved Hacking Suite Protection Medium Armor Plating Weapon Improved Assault Rifle Energy Gun Small Laser Energy Cannon Enhanced Nova Cannon Ballistic Gun Improved Assault Rifle Ballistic Cannon Antimatter Cannon Launcher Mini Smartbomb Launcher Special Weapon Mining Laser Impact Weapon Shock Maul Slashing Weapon Katana Piercing Weapon CR-A16's Pointy Stick Special Melee Weapon Advanced Datajack Build | -11 -10 -9 -9 -9 -9 -6 -6 -6 -6 -6 -6 -5 -5 -5 -5 -5 -5 -5 -4 -4 -4 -4 -4 -4 -4 -3 -3 -3 -2 -2 -2 ------- Run | Yrd Mat Mat Sto Rec Scr Fac Was Fac Low Low Zio Pro Fac Was Fac Upp Upp Zhi Pro Fac Was Fac Upp Upp War Pro Res Tes Res Qua Frg Slots Evolved 16 | . . 2 . . . 6 . . . . . . 2 . . . . . . 2 . . . . . . 2 . 2 . . Power 1 | . . . . . . . . . . . . . . . . . . . . . . . . . . . 1 . . . . Propulsion 6 | . . 1 . . . 2 . . . . . . 1 . . . . . . . . . . . . . 1 . 1 . . Utility 8 | . . . . . . 4 . . . . . . 1 . . . . . . 2 . . . . . . . . 1 . . Weapon 1 | . . 1 . . . . . . . . . . . . . . . . . . . . . . . . . . . . . Parts Attached 173 | 8 12 20 12 . 5 22 1 5 . 1 2 . 1 . 10 . . 3 1 1 1 10 3 1 5 . 4 2 2 6 35 Power 14 | 1 2 2 1 . 1 . . . . 1 . . . . . . . . 1 . 1 1 1 . . . . . . . 2 Engine 6 | 1 2 2 1 . . . . . . . . . . . . . . . . . . . . . . . . . . . . Core 6 | . . . . . 1 . . . . 1 . . . . . . . . 1 . 1 1 . . . . . . . . 1 Reactor 2 | . . . . . . . . . . . . . . . . . . . . . . . 1 . . . . . . . 1 Propulsion 48 | 2 3 6 5 . . 7 . . . . 1 . . . . . . 3 . . . 4 . . 2 . 1 1 1 2 10 Treads . | . . . . . . . . . . . . . . . . . . . . . . . . . . . . . . . . Leg 15 | 2 3 6 4 . . . . . . . . . . . . . . . . . . . . . . . . . . . . Wheel . | . . . . . . . . . . . . . . . . . . . . . . . . . . . . . . . . Hover . | . . . . . . . . . . . . . . . . . . . . . . . . . . . . . . . . Flight 33 | . . . 1 . . 7 . . . . 1 . . . . . . 3 . . . 4 . . 2 . 1 1 1 2 10 Utility 65 | 2 2 2 2 . 3 10 . 5 . . . . 1 . 8 . . . . 1 . 4 1 . 2 . 3 1 1 2 15 Device 18 | 1 . . . . . 4 . 2 . . . . . . 4 . . . . . . . . . . . 1 1 1 1 3 Storage 6 | 1 1 . . . 1 1 . 1 . . . . . . . . . . . . . . . . . . . . . . 1 Processor 15 | . . . . . . 4 . . . . . . 1 . 1 . . . . . . 1 . . 1 . 2 . . . 5 Hackware 7 | . . . . . . 1 . . . . . . . . 2 . . . . 1 . 1 1 . 1 . . . . . . Protection 19 | . 1 2 2 . 2 . . 2 . . . . . . 1 . . . . . . 2 . . . . . . . 1 6 Artifact . | . . . . . . . . . . . . . . . . . . . . . . . . . . . . . . . . Weapon 46 | 3 5 10 4 . 1 5 1 . . . 1 . . . 2 . . . . . . 1 1 1 1 . . . . 2 8 Energy Gun 8 | 2 3 3 . . . . . . . . . . . . . . . . . . . . . . . . . . . . . Energy Cannon 1 | . . . . . . . . . . . . . . . . . . . . . . . . . . . . . . 1 . Ballistic Gun 15 | 1 . 7 3 . . 2 . . . . . . . . . . . . . . . . . . . . . . . . 2 Ballistic Cannon 4 | . . . . . . 1 . . . . . . . . . . . . . . . . . . . . . . . . 3 Launcher 3 | . 1 . . . . . . . . . . . . . 2 . . . . . . . . . . . . . . . . Special Weapon 1 | . 1 . . . . . . . . . . . . . . . . . . . . . . . . . . . . . . Impact Weapon 4 | . . . 1 . 1 1 . . . . . . . . . . . . . . . . . 1 . . . . . . . Slashing Weapon 5 | . . . . . . 1 . . . . . . . . . . . . . . . 1 1 . . . . . . 1 1 Piercing Weapon 4 | . . . . . . . . . . . 1 . . . . . . . . . . . . . 1 . . . . . 2 Special Melee Weapon 1 | . . . . . . . 1 . . . . . . . . . . . . . . . . . . . . . . . . Unidentified Prototypes 11 | . . 1 1 . . 1 . . . . . . . . . . . 1 . . . . . . . . . . . 3 4 Parts Lost 43 | . 1 6 3 . . 3 . . . 1 . . . . . . . . . 4 . 11 1 . . . . 1 . 3 9 Power 6 | . . . . . . . . . . 1 . . . . . . . . . 1 . 1 1 . . . . 1 . . 1 Propulsion 12 | . . 3 2 . . . . . . . . . . . . . . . . . . 3 . . . . . . . 2 2 Utility 16 | . . 1 1 . . 2 . . . . . . . . . . . . . 2 . 4 . . . . . . . 1 5 Weapon 9 | . 1 2 . . . 1 . . . . . . . . . . . . . 1 . 3 . . . . . . . . 1 Highest Loss Streak 8 | . 1 2 2 . . 3 . . . 1 . . . . . . . . . 4 . 7 8 . . . . 1 . 3 2 To Critical Strikes . | . . . . . . . . . . . . . . . . . . . . . . . . . . . . . . . . Average Backups 11 | 2 13 14 14 15 14 10 10 10 10 9 10 10 9 10 9 10 10 10 10 9 9 9 8 9 10 10 9 9 8 8 8 Power . | . . . 1 1 1 1 1 1 1 . . . . . . 1 1 1 1 1 . . 1 1 1 1 . . . . . Propulsion 2 | . 2 1 2 7 6 1 2 1 2 2 2 2 1 1 . . . . . . 1 1 . . . . . . . . 1 Utility 4 | 1 5 6 5 2 2 5 5 5 5 5 5 6 5 6 5 6 6 6 6 4 5 4 4 5 5 5 6 5 3 2 2 Weapon 3 | 1 4 5 4 4 3 2 2 1 1 1 2 2 2 3 3 3 3 2 2 2 2 1 2 2 2 2 2 3 4 3 2 Tool/Special . | . . . . . . . . . . . . . . . . . . . . . . . . . . . . . . . . Unused Backups 54 | . 4 6 7 . 2 6 . 4 . . 1 . 3 . 1 . . . . 1 . . . . 1 . 1 2 . 2 13 Power 3 | . . . 1 . . 1 . . . . . . . . . . . . . . . . . . . . . . . . 1 Propulsion 9 | . . . . . 1 . . 1 . . . . . . 1 . . . . . . . . . . . . . . . 6 Utility 22 | . 1 2 5 . . 3 . 3 . . . . 1 . . . . . . 1 . . . . 1 . 1 2 . . 2 Weapon 18 | . 3 4 1 . 1 1 . . . . 1 . 2 . . . . . . . . . . . . . . . . 2 3 Tool/Special 2 | . . . . . . 1 . . . . . . . . . . . . . . . . . . . . . . . . 1 Average Slot Usage (%) 94 | . 99 98 99 100 98 85 93 100 100 98 99 100 99 100 100 100 100 99 100 99 84 91 69 73 81 96 93 92 88 85 79 Engine 5 | . 14 11 11 11 9 . . . . . . . . . . . . . . . . . . . 2 5 4 3 . . . Core 2 | . . . . . 1 6 6 6 6 6 6 6 5 5 5 5 5 5 5 4 5 5 . . . . . . . . 3 Leg 15 | . 28 32 32 33 33 . . . . . . . . . . . . . . . . . . . . . . . . . . Flight 14 | . . . . . . 32 33 33 33 33 33 33 34 35 35 35 35 35 35 31 31 29 21 21 21 31 28 25 28 27 25 Device 5 | . 12 3 . . . 9 6 7 6 6 6 6 5 5 7 5 5 2 4 5 . 5 5 5 5 5 4 5 11 15 9 Storage 7 | . 14 11 11 11 11 5 6 6 6 6 6 6 5 5 5 5 5 5 5 5 5 5 5 5 5 5 4 4 4 4 3 Processor 8 | . . . . . . 13 13 13 13 13 13 13 17 17 17 17 17 17 17 15 15 16 10 10 10 10 13 14 13 13 20 Hackware 3 | . . . . . . 2 6 6 6 6 6 6 5 5 5 11 11 11 11 15 15 15 14 15 18 21 14 14 13 6 1 Protection 6 | . 1 7 10 11 11 5 6 4 6 6 6 6 5 5 2 . . 1 . 4 . . 10 10 6 5 4 2 . . 5 Energy Gun 1 | . 13 3 . . . . . . . . . . . . . . . . . . . . . . . . . . . . . Ballistic Gun 14 | . 13 28 32 33 31 1 . . . . . . . . . . . . . . . . . . . . . . . . . Impact Weapon 1 | . . . . . . 3 6 6 6 6 6 6 4 5 4 4 5 5 4 4 5 4 . . 5 5 4 4 4 3 . Slashing Weapon 1 | . . . . . . 1 6 6 6 6 6 6 5 5 5 5 5 5 5 5 5 5 1 5 1 . . . . . 2 Peak Build Rating 228 | 7 9 19 24 21 22 66 66 72 70 72 73 71 81 81 90 88 88 94 96 106 94 116 83 86 103 112 134 139 148 169 228 Average Rating 68 | 5 8 16 20 21 20 48 60 70 69 69 70 71 80 81 82 88 88 88 95 103 94 103 78 81 91 106 127 131 144 151 187 On Entrance 75 | . 7 9 19 21 21 12 59 66 70 70 65 71 71 81 81 88 88 88 94 96 89 94 76 80 85 103 112 134 136 148 169 Avg Prop Armor Cover (%) 1 | . . . . . . 1 . . . . . . 2 2 2 2 2 2 . . . 1 . . . 1 1 . . . 1 Naked Turns . | . . . . . . . . . . . . . . . . . . . . . . . . . . . . . . . . Heaviest Build 62 | 12 31 42 44 44 44 33 25 25 24 26 28 28 33 28 33 27 26 27 27 33 22 37 27 27 29 31 43 43 43 52 62 Greatest Support 66 | 20 20 30 30 30 30 36 28 28 28 28 28 28 34 34 34 34 34 35 35 35 47 41 28 28 37 37 49 55 56 57 66 Greatest Overweight (x) 2 | . 1 2 2 1 1 . . . . . . . . . 1 . . . . . . . . . 1 . 1 . . 1 . Average Overweight (x) . | . . . 1 1 . . . . . . . . . . . . . . . . . . . . . . . . . . . Largest Inventory Capacity 25 | 8 15 15 15 15 20 15 10 10 10 10 10 10 10 10 10 10 10 10 10 10 10 10 10 10 10 10 10 10 10 10 25 Average Capacity 12 | 7 14 15 15 15 15 12 10 10 10 10 10 10 10 10 10 10 10 10 10 10 10 10 10 10 10 10 10 10 10 10 12 Most Carried 25 | 4 15 15 15 15 16 15 10 10 10 10 10 10 10 10 10 10 10 10 10 10 9 10 8 10 10 10 10 10 10 10 25 Average Carried 12 | 2 13 14 14 15 14 10 10 9 10 9 9 10 9 10 9 10 10 9 10 9 9 9 7 9 9 9 9 9 9 9 10 Final Capacity 25 | 8 15 15 15 15 15 10 10 10 10 10 10 10 10 10 10 10 10 10 10 10 10 10 10 10 10 10 10 10 10 10 25 Final Carried 15 | 4 15 15 15 15 15 10 10 10 10 10 10 10 10 10 10 10 10 10 10 10 9 9 8 10 10 10 10 10 10 10 14 Class Distribution -------------------- 21% | Commander-Tank 10% | Sprinter 8% | Mutant 8% | Tank 7% | Scavenger-Tank 7% | Scavenger-Scout 7% | Hacker-Scout 6% | Hacker-Sprinter 4% | Scout 4% | Scavenger-Sprinter 4% | Ninja 3% | Hacker-Ninja 3% | Scavenger-Gunner Dominant Class ---------------- Mutant | -10/Materials Scavenger-Tank | -9/Materials Commander-Tank | -9/Storage Commander-Tank | -9/Recycling Commander-Tank | -9/Scraptown Sprinter | -6/Factory Sprinter | -6/Waste Sprinter | -6/Factory Sprinter | -6/Lower Caves Sprinter | -6/Lower Caves Sprinter | -6/Zion Sprinter | -5/Proximity Caves Scout | -5/Factory Scout | -5/Waste Scout | -5/Factory Hacker-Scout | -5/Upper Caves Hacker-Scout | -5/Upper Caves Hacker-Scout | -5/Zhirov Hacker-Scout | -4/Proximity Caves Hacker-Scout | -4/Factory Hacker-Scout | -4/Waste Hacker-Scout | -4/Factory Hacker-Sprinter | -4/Upper Caves Hacker-Sprinter | -4/Upper Caves Hacker-Sprinter | -4/Warlord Hacker-Sprinter | -3/Proximity Caves Hacker-Scout | -3/Research Hacker-Scout | -3/Testing Hacker-Ninja | -2/Research Ninja | -2/Quarantine Scavenger-Scout | -2/Protoforge Resources | -11 -10 -9 -9 -9 -9 -6 -6 -6 -6 -6 -6 -5 -5 -5 -5 -5 -5 -5 -4 -4 -4 -4 -4 -4 -4 -3 -3 -3 -2 -2 -2 ----------- Run | Yrd Mat Mat Sto Rec Scr Fac Was Fac Low Low Zio Pro Fac Was Fac Upp Upp Zhi Pro Fac Was Fac Upp Upp War Pro Res Tes Res Qua Frg Matter Collected 10832 | 313 518 1040 1108 75 84 399 . 233 52 34 30 . . . 566 250 136 . 50 48 . 448 55 26 830 31 35 95 20 193 4163 Remotely . | . . . . . . . . . . . . . . . . . . . . . . . . . . . . . . . . Salvage Created 12234 | 180 608 1506 1575 154 . 501 . 279 . 72 . . . . 579 50 . . . 139 . 861 . . 508 136 35 . 290 276 4485 Parts 603 | 19 45 101 94 7 . 10 . 4 . 1 . . . . 27 5 . . . 15 . 13 . . 20 7 3 . 4 19 209 Haulers Intercepted 25 | . 2 5 5 . . 2 . 2 . . . . . . 2 . . . . . . 4 . . . . . . 3 . . Recyclers Shooed 6 | . 1 1 . 1 . 2 . . . . . . . . . . . . . . . 1 . . . . . . . . . Parts Field Recycled . | . . . . . . . . . . . . . . . . . . . . . . . . . . . . . . . . Retrieved Matter . | . . . . . . . . . . . . . . . . . . . . . . . . . . . . . . . . Parts Self-Destructed 12 | . . . . . . . . . . . . . . . . 5 1 . . . . . . . . 6 . . . . . Prevented 2 | . . . . . . . . . . 1 . . . . . . 1 . . . . . . . . . . . . . . Parts Restored . | . . . . . . . . . . . . . . . . . . . . . . . . . . . . . . . . Kills | -11 -10 -9 -9 -9 -9 -6 -6 -6 -6 -6 -6 -5 -5 -5 -5 -5 -5 -5 -4 -4 -4 -4 -4 -4 -4 -3 -3 -3 -2 -2 -2 ------- Run | Yrd Mat Mat Sto Rec Scr Fac Was Fac Low Low Zio Pro Fac Was Fac Upp Upp Zhi Pro Fac Was Fac Upp Upp War Pro Res Tes Res Qua Frg Combat Hostiles Destroyed 193 | . 13 34 25 . . . . . . 1 . . . . 10 7 . . . 9 . . . . 22 2 . . . 8 62 Melee 9 | . . . . . . . . . . . . . . . . . . . . 1 . . . . . 2 . . . . 6 Guns 56 | . 12 23 21 . . . . . . . . . . . . . . . . . . . . . . . . . . . . Cannons 49 | . . . . . . . . . . . . . . . . . . . . . . . . . . . . . . . 49 AOE 76 | . . 11 4 . . . . . . . . . . . 10 7 . . . 8 . . . . 22 . . . . 8 6 Classes Destroyed 25 | 2 6 2 2 . . . . . . . . . . . . . . . . . . 1 . . 2 1 . . . 1 8 Worker 12 | . 3 1 3 . . . . . . . . . . . . . . . . 1 . 1 . . . . . . 1 1 1 Builder 13 | . 1 1 . . . . . 1 . . . . . . 2 . . . . 1 . 3 . . . . 1 . . 1 2 Tunneler 7 | 5 . . . . . . . 1 . . . . . . . . . . . 1 . . . . . . . . . . . Hauler 25 | . 2 5 5 . . 2 . 2 . . . . . . 2 . . . . . . 4 . . . . . . 3 . . Recycler 15 | 1 . 1 4 2 . 2 . . . . . . . . 2 . . . . . . 2 . . . . . . . 1 . Mechanic 1 | . . . . . . . . . . . . . . . . . . . . . . 1 . . . . . . . . . Operator 8 | . . 1 1 . . . . 1 . . . . . . . . . . . . . 2 . . . . . . 1 . 2 Drone 4 | . . . . . . . . . . . . . . . . . . . . . . . . . . . . . . . 4 Watcher 18 | . 1 5 . . . 1 . 3 . . . . . . 2 . . . . 1 . 3 . . . . 1 . . . 1 Swarmer 69 | . 6 16 3 . . . . . . 1 . . . . 9 7 . . . 9 . . . . 7 . . . . 8 3 Saboteur 5 | . . . . . . . . . . . . . . . . . . . . . . . . . 3 . . . . . 2 Grunt 46 | . 7 8 9 . . . . . . . . . . . . . . . . . . . . . 11 . . . . . 11 Brawler 2 | . . . 1 . . . . . . . . . . . . . . . . . . . . . . . . . . . 1 Duelist 1 | . . . 1 . . . . . . . . . . . . . . . . . . . . . . . . . . . . Protector 2 | . . . . . . . . . . . . . . . . . . . . . . . . . 1 . . . . . 1 Researcher 2 | . . . . . . . . . . . . . . . . . . . . . . . . . . . . . . 1 1 Sentry 24 | . . 10 11 . . . . . . . . . . . 1 . . . . . . . . . . . . . . . 2 Hunter 10 | . . . . . . . . . . . . . . . . . . . . . . . . . . 2 . . . . 8 Programmer 3 | . . . . . . . . . . . . . . . . . . . . . . . . . . . . . . . 3 Hotshot 2 | . . . . . . . . . . . . . . . . . . . . . . . . . . . . . . . 2 Decapitator 2 | . . . . . . . . . . . . . . . . . . . . . . . . . . . . . . . 2 Immortal 2 | . . . . . . . . . . . . . . . . . . . . . . . . . . . . . . . 2 Striker 12 | . . . . . . . . . . . . . . . . . . . . . . . . . . . . . . . 12 Executioner 8 | . . . . . . . . . . . . . . . . . . . . . . . . . . . . . . . 8 Elite 3 | . . . . . . . . . . . . . . . . . . . . . . . . . . . . . . . 3 Scrapoid 3 | . . . . . . . . . . . . . . . . . . . . . . . . . . . . . . . 3 Scraphulk 1 | . . . . . . . . . . . . . . . . . . . . . . . . . . . . . . . 1 Best Kill Streak 10 | 4 4 7 9 1 . 1 . 2 . 1 . . . . 5 4 . . . 6 . 6 . . 10 2 1 . 1 6 7 Combat Bots Only 10 | . 3 6 7 . . . . . . 1 . . . . 5 4 . . . 5 . . . . 10 2 . . . 4 7 Max Kills in Single Turn 5 | 1 1 3 2 1 . 1 . 1 . 1 . . . . 4 2 . . . 3 . 1 . . 5 1 1 . 1 3 5 Gunslinging 1 | . . 1 . . . . . . . . . . . . . . . . . . . . . . . . . . . . . Exploded 5 | . . 3 2 . . . . . . . . . . . 4 2 . . . 3 . . . . 5 . . . . 2 2 Melee 1 | . . . . . . . . . . . . . . . . . . . . 1 . . . . . 1 . . . . 1 Uniques/NPCs Destroyed . | . . . . . . . . . . . . . . . . . . . . . . . . . . . . . . . . Combat | -11 -10 -9 -9 -9 -9 -6 -6 -6 -6 -6 -6 -5 -5 -5 -5 -5 -5 -5 -4 -4 -4 -4 -4 -4 -4 -3 -3 -3 -2 -2 -2 -------- Run | Yrd Mat Mat Sto Rec Scr Fac Was Fac Low Low Zio Pro Fac Was Fac Upp Upp Zhi Pro Fac Was Fac Upp Upp War Pro Res Tes Res Qua Frg Hostile Shots Fired 1009 | . 73 148 97 . . 63 . 19 . 11 . 1 1 . 12 4 . . 4 75 . 68 3 . 14 13 . 35 6 52 310 Missed 453 | . 19 39 24 . . 37 . 11 . 4 . . 1 . 6 2 . . 2 35 . 37 2 . 8 9 . 24 4 30 159 Hits 556 | . 54 109 73 . . 26 . 8 . 7 . 1 . . 6 2 . . 2 40 . 31 1 . 6 4 . 11 2 22 151 Melee 14 | . . . 3 . . . . . . . . . . . . . . . . . . . . . . . . . . . 11 Projectile 542 | . 54 109 70 . . 26 . 8 . 7 . 1 . . 6 2 . . 2 40 . 31 1 . 6 4 . 11 2 22 140 AOE 2 | . . . . . . . . . . . . . . . . . . . . . . 1 . . . . . . . . 1 Critical Strikes 31 | . 2 4 2 . . . . 1 . . . . . . . . . . 1 . . 2 . . . . . 1 . 2 16 Actively Blocked 17 | . . . . . . . . . . . . . . . . . . . . . . . . . . . . . . 2 15 Damage Taken 11196 | . 576 1299 1025 . . 248 . 50 . 107 . 20 . . 97 72 . . 36 793 . 1066 23 . 180 66 . 159 45 827 4507 Core 1845 | . 152 133 179 . . 85 . 11 . 45 . . . . 12 25 . . . 195 . 292 . . 22 . . 19 . . 675 Absorbed by Shields 114 | . . . . . . . . . . . . . . . . . . . . . . . . . 71 . . . . . 43 Redirected to Shielding 226 | . 4 10 . . . . . . . . . 13 . . 22 . . . . 75 . . . . . . . . . . 102 Regen/Repaired (Parts) 1893 | . . 154 172 . 122 . . . . . 149 . . . . . . . . . . 54 . . 31 . . 80 . 170 961 Core Remaining (%) 65 | 100 39 . . . 22 . . . . . . 83 . . . . . . 96 . . . . . . 55 . 98 . . 29 Volleys Fired 631 | 11 65 89 81 4 . 36 . 7 2 1 . . 2 . 16 7 . . 5 7 . 3 . 1 30 2 . 5 . 23 234 Largest 3 | 2 2 3 3 3 . 1 . 1 1 1 . . 1 . 1 1 . . 1 1 . 1 . 1 1 1 . 1 . 1 2 Hottest 135 | 60 100 135 69 69 . 28 . 33 33 33 . . 33 . 80 80 . . 33 80 . 33 . 33 80 33 . 33 . 120 120 Shots Fired 1008 | 22 123 241 227 13 . 36 . 7 2 1 . . 2 . 16 7 . . 5 7 . 3 . 1 30 2 . 5 . 22 236 Gun 646 | 22 120 231 219 13 . 36 . . . . . . . . . . . . . . . . . . . . . . . . 5 Cannon 260 | . . . . . . . . 7 2 1 . . 2 . 4 1 . . 5 2 . 3 . 1 . 2 . 5 . 15 210 Launcher 96 | . . 7 8 . . . . . . . . . . . 12 6 . . . 5 . . . . 30 . . . . 7 21 Special 6 | . 3 3 . . . . . . . . . . . . . . . . . . . . . . . . . . . . . Kinetic 701 | 11 50 198 219 13 . 36 . 7 2 1 . . 2 . 4 1 . . 5 2 . 3 . 1 . 2 . 5 . 2 137 Thermal 166 | 11 52 12 . . . . . . . . . . . . . . . . . . . . . . . . . . . 13 78 Explosive 96 | . . 7 8 . . . . . . . . . . . 12 6 . . . 5 . . . . 30 . . . . 7 21 Electromagnetic 45 | . 21 24 . . . . . . . . . . . . . . . . . . . . . . . . . . . . . Robot Hit Streak 32 | 7 4 14 32 5 . 10 . . . . . . . . 7 . . . . 8 . . . . 9 . . . . 13 14 Robot Miss Streak 18 | 1 3 3 3 3 . 2 . . . . . . . . . . . . . . . . . . . . . . . . 18 Penetration Max 3 | . . . . . . 1 . . . . . . . . . . . . . . . . . . . . . . . . 3 Secondary Targets 7 | . 1 4 2 . . . . . . . . . . . . . . . . . . . . . . . . . . . . Max Gunslinging Chain 1 | . 1 1 1 . . . . . . . . . . . . . . . . . . . . . . . . . . . . Shots Hit Robots 679 | 15 65 162 164 6 . 36 . 12 . 2 . . . . 17 . . . . 6 . 30 . . 1 3 2 . 12 5 141 Core Hits 560 | 7 30 72 64 2 . 7 . 2 . . . . . . 26 9 . . . 18 . 5 . . 83 2 1 . 1 22 209 Critical Kills 49 | . . 1 2 . . 1 . . . . . . . . . . . . . . . . . . . . . . . . 45 Critical Parts Destroyed 61 | . 1 . . . . . . 2 . 1 . . . . 1 . . . . 2 . 10 . . . . 1 . 1 . 42 Critical Strikes 122 | . 1 1 2 . . 1 . 2 . 1 . . . . 1 . . . . 2 . 11 . . . . 1 . 3 . 96 Meltdown 1 | . . . . . . . . . . . . . . . . . . . . . . . . . . . . . . . 1 Destroy 99 | . 1 1 2 . . . . . . . . . . . . . . . . . . . . . . . . . . . 95 Smash 19 | . . . . . . 1 . 2 . 1 . . . . 1 . . . . 2 . 10 . . . . 1 . 1 . . Sever 1 | . . . . . . . . . . . . . . . . . . . . . . 1 . . . . . . . . . Sunder 2 | . . . . . . . . . . . . . . . . . . . . . . . . . . . . . 2 . . Melee Attacks 435 | . . . 2 . . 17 . 56 9 13 . 1 13 . 59 21 13 . 15 34 . 47 6 1 5 15 11 12 31 12 42 Impact 245 | . . . 2 . . 11 . 43 9 11 . . 7 . 24 16 8 . 10 19 . 23 . . 4 11 7 11 22 7 . Slashing 147 | . . . . . . 6 . 13 . 2 . 1 3 . 26 3 4 . 3 11 . 24 6 1 . . . . . 2 42 Piercing 21 | . . . . . . . . . . . . . 3 . 9 2 1 . 2 4 . . . . . . . . . . . Entropic 22 | . . . . . . . . . . . . . . . . . . . . . . . . . 1 4 4 1 9 3 . Sneak Attacks 52 | . . . . . . 3 . 7 . . . . . . 8 . . . . 3 . 16 . . . 1 2 . 5 1 6 Combat Hostiles 2 | . . . . . . . . . . . . . . . . . . . . . . . . . . 1 . . . . 1 Follow-up Attacks 15 | . . . . . . . . 1 . . . . . . 2 . . . . 2 . 6 . . . . . . 4 . . Damage Inflicted 35017 | 184 871 2879 2961 101 . 1093 . 1224 . 239 . . . . 2090 638 . . . 1553 . 2395 . . 5000 392 291 . 1227 1267 10612 Guns 6566 | 184 871 2204 2588 101 . 546 . . . . . . . . . . . . . . . . . . . . . . . . 72 Cannons 6310 | . . . . . . . . . . . . . . . . . . . . . . . . . . . . . . . 6310 Explosions 12824 | . . 675 373 . . . . . . . . . . . 1085 638 . . . 1155 . . . . 5000 . . . . 1180 2718 Melee 9317 | . . . . . . 547 . 1224 . 239 . . . . 1005 . . . . 398 . 2395 . . . 392 291 . 1227 87 1512 Ramming . | . . . . . . . . . . . . . . . . . . . . . . . . . . . . . . . . Kinetic 10363 | 104 332 1917 2588 101 . 546 . . . . . . . . . . . . . . . . . . . . . . . . 4775 Thermal 2210 | 80 367 156 . . . . . . . . . . . . . . . . . . . . . . . . . . . . 1607 Explosive 12722 | . . 573 373 . . . . . . . . . . . 1085 638 . . . 1155 . . . . 5000 . . . . 1180 2718 Electromagnetic 405 | . 172 233 . . . . . . . . . . . . . . . . . . . . . . . . . . . . . Impact 4885 | . . . . . . 440 . 1191 . 239 . . . . 410 . . . . 332 . 1692 . . . . 86 . 408 87 . Slashing 2956 | . . . . . . 107 . 33 . . . . . . 535 . . . . 66 . 703 . . . . . . . . 1512 Piercing 60 | . . . . . . . . . . . . . . . 60 . . . . . . . . . . . . . . . . Entropic 1416 | . . . . . . . . . . . . . . . . . . . . . . . . . . 392 205 . 819 . . Highest Corruption 23 | . . 4 4 4 . 2 8 8 1 1 1 . . 7 6 . . . . . . 23 23 23 23 1 . . . 14 14 Average Corruption 5 | . . 3 4 4 . 2 3 5 1 1 1 . . 7 3 . . . . . . 12 23 23 4 1 . . . 12 9 Corruption Purged 28 | . . . . . . . . 7 . . . . . . 7 . . . . . . . . . . . . . . . 14 Corruption Blocked . | . . . . . . . . . . . . . . . . . . . . . . . . . . . . . . . . Effects 218 | . . 28 66 23 . . . 20 2 2 . . . . 1 . . . . . . 8 5 4 1 3 . . . 14 41 Message Errors 62 | . . 7 18 8 . . . 6 . 1 . . . . . . . . . . . 1 3 1 1 1 . . . 6 9 Matter Fused 53 | . . 7 18 6 . . . 7 . 1 . . . . . . . . . . . 2 1 . . 1 . . . 4 6 Heat Flow Errors 24 | . . 3 7 3 . . . 2 . . . . . . 1 . . . . . . 1 . 1 . . . . . . 6 Energy Discharges 27 | . . 5 6 5 . . . 4 1 . . . . . . . . . . . . . . . . . . . . . 6 Parts Rejected 2 | . . . . . . . . . . . . . . . . . . . . . . . . . . . . . . . 2 Parts Fused 3 | . . . 1 . . . . . . . . . . . . . . . . . . . . . . . . . . 1 1 Data Loss (minor) 19 | . . 4 7 . . . . . . . . . . . . . . . . . . . 1 1 . 1 . . . . 5 Data Loss (major) 7 | . . 1 2 . . . . . 1 . . . . . . . . . . . . 1 . . . . . . . . 2 Misfires 5 | . . 1 3 1 . . . . . . . . . . . . . . . . . . . . . . . . . . . Alerts 4 | . . . 1 . . . . 1 . . . . . . . . . . . . . . . 1 . . . . . . 1 Misdirections 8 | . . . . . . . . . . . . . . . . . . . . . . 3 . . . . . . . 2 3 Weapon Failures 4 | . . . 3 . . . . . . . . . . . . . . . . . . . . . . . . . . 1 . Overload Shots . | . . . . . . . . . . . . . . . . . . . . . . . . . . . . . . . . Overflow Damage 4157 | . . 25 . . . 192 . 650 . 199 . . . . 301 31 . . . 331 . 1175 . . 55 . 86 . 289 67 756 Projectiles 174 | . . . . . . . . . . . . . . . . . . . . . . . . . . . . . . . 174 Explosions 204 | . . 25 . . . . . . . . . . . . 37 31 . . . 14 . . . . 55 . . . . 10 32 Melee 3779 | . . . . . . 192 . 650 . 199 . . . . 264 . . . . 317 . 1175 . . . . 86 . 289 57 550 Knockbacks 42 | . . . . . . . . . . 1 . . . . 1 . . . . 1 . 4 . . . . . . 1 . 34 Impact 8 | . . . . . . . . . . 1 . . . . 1 . . . . 1 . 4 . . . . . . 1 . . Kinetic 33 | . . . . . . . . . . . . . . . . . . . . . . . . . . . . . . . 33 Secondary 1 | . . . . . . . . . . . . . . . . . . . . . . . . . . . . . . . 1 Self-Inflicted Damage 109 | . . 60 . . . . . . . . . . . . . 23 . . . . . . . . . . . . . 26 . Shots 4 | . . 2 . . . . . . . . . . . . . 1 . . . . . . . . . . . . . 1 . Rammed . | . . . . . . . . . . . . . . . . . . . . . . . . . . . . . . . . Targets Rammed . | . . . . . . . . . . . . . . . . . . . . . . . . . . . . . . . . Kicked . | . . . . . . . . . . . . . . . . . . . . . . . . . . . . . . . . Crushed . | . . . . . . . . . . . . . . . . . . . . . . . . . . . . . . . . Highest Temperature 361 | 20 257 270 234 280 . 32 10 283 2 3 3 10 45 33 195 86 126 15 . 42 285 244 . 136 361 . 81 84 124 51 185 Average Temperature 48 | 20 71 55 45 86 . 8 6 92 2 2 1 1 22 18 43 44 63 9 . 11 92 57 . 76 58 . 30 29 34 20 60 Received Heat Transfer 1402 | . 255 381 357 . . 36 . . . . . 9 . . 9 9 . . . 63 . 27 9 . 16 . . . . . 231 Effects 2 | . . . . 1 . . . 1 . . . . . . . . . . . . . . . . . . . . . . . Energy Bleed 2 | . . . . 1 . . . 1 . . . . . . . . . . . . . . . . . . . . . . . Siege Activations . | . . . . . . . . . . . . . . . . . . . . . . . . . . . . . . . . Martial Activations . | . . . . . . . . . . . . . . . . . . . . . . . . . . . . . . . . Shielding Activations . | . . . . . . . . . . . . . . . . . . . . . . . . . . . . . . . . Robots Disrupted . | . . . . . . . . . . . . . . . . . . . . . . . . . . . . . . . . Combat Hostiles . | . . . . . . . . . . . . . . . . . . . . . . . . . . . . . . . . Robots Corrupted 15 | . 1 . . . . . . 2 . 1 . . . . 1 . . . . 1 . 7 . . . . . . 2 . . Combat Hostiles 2 | . 1 . . . . . . . . 1 . . . . . . . . . . . . . . . . . . . . . Parts Fried 32 | . 2 . . . . 5 . 8 . 2 . . . . 1 . . . . . . 11 . . . . 2 . . 1 . Impact Corruptions 66 | . . . . . . 3 . 8 . 3 . . . . 5 . . . . 8 . 29 . . . . 1 . 8 1 . Robots Melted 1 | . . . . . . . . . . . . . . . . . . . . . . . . . . . . . . . 1 Combat Hostiles 1 | . . . . . . . . . . . . . . . . . . . . . . . . . . . . . . . 1 Parts Melted 3 | . 1 . . . . . . . . . . . . . . . . . . . . . . . . . . . . . 2 Heat Transferred 2653 | 175 825 275 . . . . . . . . . . . . . . . . . . . . . . . . . . . . 1378 Parts Sabotaged . | . . . . . . . . . . . . . . . . . . . . . . . . . . . . . . . . Parts Stolen . | . . . . . . . . . . . . . . . . . . . . . . . . . . . . . . . . Parts Stripped . | . . . . . . . . . . . . . . . . . . . . . . . . . . . . . . . . Power Chain Reactions 3 | . . 3 . . . . . . . . . . . . . . . . . . . . . . . . . . . . . Alert | -11 -10 -9 -9 -9 -9 -6 -6 -6 -6 -6 -6 -5 -5 -5 -5 -5 -5 -5 -4 -4 -4 -4 -4 -4 -4 -3 -3 -3 -2 -2 -2 ------- Run | Yrd Mat Mat Sto Rec Scr Fac Was Fac Low Low Zio Pro Fac Was Fac Upp Upp Zhi Pro Fac Was Fac Upp Upp War Pro Res Tes Res Qua Frg Maximum Alert Level 5 | . . 2 1 . . . . . . . . . . . 1 . . . . 1 . . . . . . . . . 1 5 Low Security (%) 61 | 100 100 36 49 100 . 100 100 100 . . . . 100 100 63 . . . . 81 100 100 . . . . 100 100 100 83 9 Level 1 21 | . . 46 50 . . . . . . . . . . . 36 . . . . 18 . . . . . . . . . 16 14 Level 2 9 | . . 16 . . . . . . . . . . . . . . . . . . . . . . . . . . . . 32 Level 3 1 | . . . . . . . . . . . . . . . . . . . . . . . . . . . . . . . 7 Level 4 1 | . . . . . . . . . . . . . . . . . . . . . . . . . . . . . . . 7 Level 5 5 | . . . . . . . . . . . . . . . . . . . . . . . . . . . . . . . 29 High Security . | . . . . . . . . . . . . . . . . . . . . . . . . . . . . . . . . Max Security . | . . . . . . . . . . . . . . . . . . . . . . . . . . . . . . . . Peak Influence 2998 | 10 146 448 330 143 . 68 27 116 . . . . 86 24 368 . . . . 360 137 109 . . . . 65 62 58 304 2998 Initial 173 | . . . 173 122 . . 12 11 . . . . . 24 9 . . . . . 122 95 . . . . 43 . 15 . 162 Average 307 | 2 51 264 192 34 . 15 20 60 . . . . 41 23 130 . . . . 72 123 59 . . . . 28 16 17 115 1047 Influence Increases 11318 | 30 393 1138 1047 197 . 345 15 391 . 140 . 45 153 . 666 150 . . . 690 15 253 15 . 1042 95 39 126 160 536 3637 Destroy 0b10 Robot/C 4180 | . 260 680 600 40 . . . . . 20 . . . . 200 140 . . . 180 . . . . 680 40 . . . 180 1160 Destroy 0b10 Robot/NC 540 | 30 35 70 75 10 . 25 . 40 . 5 . . . . 40 . . . . 20 . 80 . . 5 . 10 . 25 15 55 Destroy Leader 786 | . 56 200 202 . . 6 . 10 . 10 . . . . 38 10 . . . 22 . 12 . . . 10 2 . 6 20 182 Allied During Kill 407 | . . . 64 16 . . . . . . . . . . . . . . . . . . . . 327 . . . . . . Successful Hack 467 | . 23 51 28 11 . 50 . 33 . . . . 26 . 42 . . . . 45 . 28 . . . . . 20 36 42 32 Select Force Hacks 150 | . . 30 . 120 . . . . . . . . . . . . . . . . . . . . . . . . . . . Disable Machine 510 | . . . 15 . . 15 . . . . . . . . 30 . . . . 15 . 15 . . . . 15 90 15 75 225 Destroy Structure 1143 | . 4 62 63 . . 9 . 38 . . . . 22 . 166 . . . . 168 . 28 . . . . 12 16 33 159 363 Partial Spotted 855 | . . . . . . 120 15 75 . . . . 90 . 120 . . . . 15 15 60 . . . . . . 45 45 255 Lose Combat Pursuer 2280 | . 15 45 . . . 120 . 195 . 105 . 45 15 . 30 . . . . 225 . 30 15 . 30 45 . . . . 1365 Influence Decreases 8321 | 30 393 726 1145 490 21 310 33 320 88 140 . 45 82 57 338 257 106 129 . 340 228 390 15 . 116 956 104 97 189 248 928 Entered New Map 2227 | . . . 239 192 21 . 23 6 34 . . . . 47 5 127 46 129 . . 228 42 . . . 926 22 . 14 . 126 Time Decay 5028 | 30 283 656 666 298 . 226 10 314 54 130 . 45 82 10 313 130 60 . . 127 . 269 15 . 96 30 82 87 95 208 712 Lost Part 368 | . 10 60 30 . . 9 . . . 10 . . . . . . . . . 40 . 79 . . . . . 10 . 30 90 Lost Ally 168 | . . 10 60 . . 15 . . . . . . . . 20 . . . . 23 . . . . 20 . . . 10 10 . Purge Threat 530 | . 100 . 150 . . 60 . . . . . . . . . . . . . 150 . . . . . . . . 70 . . Squads Dispatched 75 | . 2 3 5 . . 9 . 10 . . . . 3 . 9 . . . . 6 . 11 . . . . . 4 2 4 7 Investigation 41 | . . 3 . . . 6 . 8 . . . . 2 . 8 . . . . 4 . 6 . . . . . . 1 . 3 Extermination 15 | . . . . . . 2 . 2 . . . . 1 . 1 . . . . . . 2 . . . . . 2 1 3 1 Reinforcement 15 | . 2 . 2 . . 1 . . . . . . . . . . . . . 2 . 3 . . . . . 1 . 1 3 Assault 1 | . . . . . . . . . . . . . . . . . . . . . . . . . . . . 1 . . . Garrison 3 | . . . 3 . . . . . . . . . . . . . . . . . . . . . . . . . . . . Intercept . | . . . . . . . . . . . . . . . . . . . . . . . . . . . . . . . . Searches Triggered . | . . . . . . . . . . . . . . . . . . . . . . . . . . . . . . . . Unchained Authorized 3 | . . . . . . . . . . . . . . . . . . . . . . 1 . . . . 1 1 . . . Construction Impeded . | . . . . . . . . . . . . . . . . . . . . . . . . . . . . . . . . Haulers Reinforced 1 | . . . . . . 1 . . . . . . . . . . . . . . . . . . . . . . . . . Active Scanning Responses . | . . . . . . . . . . . . . . . . . . . . . . . . . . . . . . . . Cargo Convoy Interrupts . | . . . . . . . . . . . . . . . . . . . . . . . . . . . . . . . . Stealth | -11 -10 -9 -9 -9 -9 -6 -6 -6 -6 -6 -6 -5 -5 -5 -5 -5 -5 -5 -4 -4 -4 -4 -4 -4 -4 -3 -3 -3 -2 -2 -2 --------- Run | Yrd Mat Mat Sto Rec Scr Fac Was Fac Low Low Zio Pro Fac Was Fac Upp Upp Zhi Pro Fac Was Fac Upp Upp War Pro Res Tes Res Qua Frg Distress Signals 36 | . 2 4 2 . . 1 . 1 . . . . . . 4 . . . . 4 . 4 . . 1 . . . 1 1 11 Communications Jammed . | . . . . . . . . . . . . . . . . . . . . . . . . . . . . . . . . Distress Signals . | . . . . . . . . . . . . . . . . . . . . . . . . . . . . . . . . Times Spotted 614 | . 23 44 39 1 . 20 3 11 . 6 . 2 1 4 28 1 . . 4 48 2 30 1 . 49 6 . 15 12 24 240 Peak Tracking Total 24 | . 4 6 7 . . 6 4 6 . 3 . 3 1 5 8 2 . . 4 17 2 11 1 . 15 3 . 8 6 7 24 Tactical Retreats 94 | . 1 1 . . . 5 . 8 . 2 . 2 1 . 4 . . . 1 8 . 6 1 . 1 1 . 2 4 3 43 ECM-based Alert Blocks 62 | . . . . . . . . . . . . . . . 8 . . . 1 13 . 11 . . . . . 4 12 9 4 Traps | -11 -10 -9 -9 -9 -9 -6 -6 -6 -6 -6 -6 -5 -5 -5 -5 -5 -5 -5 -4 -4 -4 -4 -4 -4 -4 -3 -3 -3 -2 -2 -2 ------- Run | Yrd Mat Mat Sto Rec Scr Fac Was Fac Low Low Zio Pro Fac Was Fac Upp Upp Zhi Pro Fac Was Fac Upp Upp War Pro Res Tes Res Qua Frg Traps Triggered 19 | . 1 2 1 . . 3 . . . . . . 1 . . . . . . 1 . . . . 1 . . . . . 9 Indirectly . | . . . . . . . . . . . . . . . . . . . . . . . . . . . . . . . . Trap Hack Attempts . | . . . . . . . . . . . . . . . . . . . . . . . . . . . . . . . . Triggered . | . . . . . . . . . . . . . . . . . . . . . . . . . . . . . . . . Disarmed . | . . . . . . . . . . . . . . . . . . . . . . . . . . . . . . . . Reprogrammed . | . . . . . . . . . . . . . . . . . . . . . . . . . . . . . . . . Reused . | . . . . . . . . . . . . . . . . . . . . . . . . . . . . . . . . Traps Extracted . | . . . . . . . . . . . . . . . . . . . . . . . . . . . . . . . . Installed . | . . . . . . . . . . . . . . . . . . . . . . . . . . . . . . . . Triggered . | . . . . . . . . . . . . . . . . . . . . . . . . . . . . . . . . Machines | -11 -10 -9 -9 -9 -9 -6 -6 -6 -6 -6 -6 -5 -5 -5 -5 -5 -5 -5 -4 -4 -4 -4 -4 -4 -4 -3 -3 -3 -2 -2 -2 ---------- Run | Yrd Mat Mat Sto Rec Scr Fac Was Fac Low Low Zio Pro Fac Was Fac Upp Upp Zhi Pro Fac Was Fac Upp Upp War Pro Res Tes Res Qua Frg Machines Disabled 39 | . . . 1 . . 1 . . . . . . . . 2 . . . . 1 . 1 . . 3 . 1 6 1 5 17 Max in Single Turn 2 | . . . 1 . . 1 . . . . . . . . 1 . . . . 1 . 1 . . 2 . 1 1 1 1 2 Garrison Access 7 | . . . 1 . . 2 . . . . . . . . 1 . . . . 2 . . . . . . . . . . 1 Machines Repaired . | . . . . . . . . . . . . . . . . . . . . . . . . . . . . . . . . Machines Dismantled . | . . . . . . . . . . . . . . . . . . . . . . . . . . . . . . . . Machines Sabotaged . | . . . . . . . . . . . . . . . . . . . . . . . . . . . . . . . . Overloaded Fab Kills . | . . . . . . . . . . . . . . . . . . . . . . . . . . . . . . . . Hacking | -11 -10 -9 -9 -9 -9 -6 -6 -6 -6 -6 -6 -5 -5 -5 -5 -5 -5 -5 -4 -4 -4 -4 -4 -4 -4 -3 -3 -3 -2 -2 -2 --------- Run | Yrd Mat Mat Sto Rec Scr Fac Was Fac Low Low Zio Pro Fac Was Fac Upp Upp Zhi Pro Fac Was Fac Upp Upp War Pro Res Tes Res Qua Frg Machines Accessed 170 | . 7 16 12 9 8 15 . 19 . 2 . . 4 . 15 1 . 7 . 11 . 12 . 1 8 . 1 3 6 7 6 Terminals 80 | . 6 12 9 5 . 4 . 9 . . . . 2 . 4 . . . . 5 . 4 . 1 . . 1 2 5 7 4 Fabricators 5 | . . . . . . . . 2 . . . . . . 1 . . . . . . 2 . . . . . . . . . Repair Stations 6 | . . 1 2 . . . . 1 . . . . . . . . . . . . . 1 . . . . . 1 . . . Recycling Units 39 | . 1 1 . 4 . 6 . 7 . . . . 2 . 8 . . . . 4 . 4 . . . . . . 1 . 1 Scanalyzers 6 | . . 2 . . . 2 . . . . . . . . 1 . . . . . . 1 . . . . . . . . . Garrison Access 8 | . . . 1 . . 3 . . . . . . . . 1 . . . . 2 . . . . . . . . . . 1 Total Hacks 493 | . 23 53 30 23 49 28 . 35 . 8 . . 8 . 26 1 . 46 . 36 . 24 . 1 25 . 5 15 27 18 12 Successful 343 | . 13 34 18 17 49 19 . 18 . 8 . . 5 . 18 1 . 46 . 21 . 13 . 1 25 . 3 8 14 4 8 Failed 148 | . 10 18 12 6 . 8 . 17 . . . . 3 . 8 . . . . 15 . 11 . . . . 2 7 13 14 4 Catastrophic 24 | . 1 3 4 . . 2 . 2 . . . . 1 . 1 . . . . 1 . 1 . . . . . 1 3 4 . Database Lockouts 2 | . . 1 . . . 1 . . . . . . . . . . . . . . . . . . . . . . . . . Manual 184 | . 19 21 8 18 . 11 . 23 . . . . 6 . 13 . . . . 20 . 13 . . . . 5 . 13 11 3 Terminals 237 | . 22 41 19 15 . 9 . 18 . . . . 5 . 7 . . . . 26 . 10 . 1 . . 5 6 26 18 9 Fabricators 7 | . . . . . . . . 2 . . . . . . 1 . . . . . . 4 . . . . . . . . . Repair Stations 28 | . . 7 9 . . . . 1 . . . . . . . . . . . . . 2 . . . . . 9 . . . Recycling Units 65 | . 1 1 . 8 . 11 . 14 . . . . 3 . 15 . . . . 5 . 5 . . . . . . 1 . 1 Scanalyzers 12 | . . 4 . . . 3 . . . . . . . . 2 . . . . . . 3 . . . . . . . . . Garrison Access 15 | . . . 2 . . 5 . . . . . . . . 1 . . . . 5 . . . . . . . . . . 2 Terminal Hacks 197 | . 4 14 7 2 49 5 . 2 . 8 . . 1 . 2 1 . 46 . 10 . 1 . 1 25 . 1 3 10 1 4 Record 98 | . . . . . 42 . . . . 7 . . . . . . . 34 . . . . . 1 14 . . . . . . Part Schematic 6 | . . . . . . . . . . . . . . . 1 . . 4 . . . . . . . . . . 1 . . Robot Analysis 11 | . . 1 . . 6 . . . . . . . . . . . . 4 . . . . . . . . . . . . . Prototype ID Bank 16 | . 1 1 . . . . . . . . . . . . . . . 4 . . . . . . 10 . . . . . . Open Door 6 | . . . 3 . . . . . . 1 . . . . . 1 . . . . . . . . 1 . . . . . . Branch Access Points 4 | . . . . . . . . . . . . . 1 . 1 . . . . . . . . . . . 1 . 1 . . Machine Index 1 | . . . . . . . . . . . . . . . . . . . . . . 1 . . . . . . . . . Terminal Index 5 | . 1 1 1 1 . . . . . . . . . . . . . . . 1 . . . . . . . . . . . Recycling Unit Index 2 | . . . . . . 1 . . . . . . . . . . . . . 1 . . . . . . . . . . . Garrison Index 1 | . . . . . . . . . . . . . . . . . . . . 1 . . . . . . . . . . . Alert Level 4 | . . 1 1 . . 1 . . . . . . . . . . . . . . . . . . . . . . . . 1 Unreport Threat 6 | . 1 . 1 . . 1 . . . . . . . . . . . . . 1 . . . . . . . . 2 . . Locate Traps 8 | . . 2 . . . 1 . 1 . . . . . . . . . . . 1 . . . . . . . 1 2 . . Patrol Status 1 | . . . . . . . . . . . . . . . . . . . . . . . . . . . . . 1 . . Hauler Manifests 7 | . . 3 1 . . . . . . . . . . . . . . . . 2 . . . . . . . . 1 . . Registered Components 5 | . . 1 . . . 1 . . . . . . . . . . . . . 1 . . . . . . . . 1 . 1 Registered Prototypes 1 | . . . . . . . . . . . . . . . . . . . . . . . . . . . . . . . 1 Zone Layout 11 | . 1 4 . 1 . . . 1 . . . . . . . . . . . 2 . . . . . . . . 1 1 . Proto ID Catalog 2 | . . . . . 1 . . . . . . . . . . . . . . . . . . . . . . . . . 1 Protovariant Controls 2 | . . . . . . . . . . . . . . . . . . . . . . . . . . . . 2 . . . Fabricator Hacks 3 | . . . . . . . . 1 . . . . . . . . . . . . . 2 . . . . . . . . . Network Status 2 | . . . . . . . . 1 . . . . . . . . . . . . . 1 . . . . . . . . . Load Schematic 1 | . . . . . . . . . . . . . . . . . . . . . . 1 . . . . . . . . . Repair Station Hacks 19 | . . 6 6 . . . . . . . . . . . . . . . . . . 2 . . . . . 5 . . . Scan Component 10 | . . 3 3 . . . . . . . . . . . . . . . . . . 1 . . . . . 3 . . . Repair 9 | . . 3 3 . . . . . . . . . . . . . . . . . . 1 . . . . . 2 . . . Recycling Unit Hacks 17 | . 1 . . 4 . 3 . 4 . . . . 1 . 4 . . . . . . . . . . . . . . . . Report Inventory 15 | . 1 . . 4 . 3 . 3 . . . . 1 . 3 . . . . . . . . . . . . . . . . Retrieve Components 2 | . . . . . . . . 1 . . . . . . 1 . . . . . . . . . . . . . . . . Scanalyzer 10 | . . 4 . . . 1 . . . . . . . . 2 . . . . . . 3 . . . . . . . . . Insert Component 4 | . . 3 . . . . . . . . . . . . . . . . . . . 1 . . . . . . . . . Analyze 2 | . . 1 . . . . . . . . . . . . . . . . . . . 1 . . . . . . . . . Retrieve Study 4 | . . . . . . 1 . . . . . . . . 2 . . . . . . 1 . . . . . . . . . Garrison Access Hacks 7 | . . . 1 . . 2 . . . . . . . . 1 . . . . 2 . . . . . . . . . . 1 Seal Access 7 | . . . 1 . . 2 . . . . . . . . 1 . . . . 2 . . . . . . . . . . 1 Unauthorized Hacks 90 | . 8 10 4 11 . 8 . 11 . . . . 3 . 9 . . . . 9 . 5 . . . . 2 . 4 3 3 Terminals 51 | . 8 9 4 7 . 3 . 3 . . . . 1 . 1 . . . . 5 . . . . . . 2 . 3 3 2 Track 1 | . . . . . . . . . . . . . . . . . . . . . . . . . . . . . . . 1 Assimilate 6 | . 1 . . . . 1 . . . . . . . . 1 . . . . 2 . . . . . . . . . 1 . Botnet 20 | . 2 3 2 2 . 2 . 3 . . . . 1 . . . . . . . . . . . . . 1 . 2 1 1 Disrupt 2 | . . . 1 . . . . . . . . . . . . . . . . 1 . . . . . . . . . . . Operators 1 | . . 1 . . . . . . . . . . . . . . . . . . . . . . . . . . . . . Skim 21 | . 5 5 1 5 . . . . . . . . . . . . . . . 2 . . . . . . 1 . 1 1 . Fabricators 2 | . . . . . . . . 1 . . . . . . . . . . . . . 1 . . . . . . . . . Recompile 2 | . . . . . . . . 1 . . . . . . . . . . . . . 1 . . . . . . . . . Repair Stations . | . . . . . . . . . . . . . . . . . . . . . . . . . . . . . . . . Recycling Units 37 | . . 1 . 4 . 5 . 7 . . . . 2 . 8 . . . . 4 . 4 . . . . . . 1 . 1 Tunnel 5 | . . 1 . 4 . . . . . . . . . . . . . . . . . . . . . . . . . . . Fedlink 32 | . . . . . . 5 . 7 . . . . 2 . 8 . . . . 4 . 4 . . . . . . 1 . 1 Scanalyzers . | . . . . . . . . . . . . . . . . . . . . . . . . . . . . . . . . Garrison Access . | . . . . . . . . . . . . . . . . . . . . . . . . . . . . . . . . Data Cores Recovered 5 | . . 1 1 . . . . 1 . . . . . . . . . . . . . 1 . . . . . . . . 1 Used . | . . . . . . . . . . . . . . . . . . . . . . . . . . . . . . . . Hacking Detections 94 | . 6 12 10 4 . 8 . 14 . . . . 2 . 9 . . . . 5 . 6 . . . . . 2 5 7 4 Full Trace Events 4 | . 1 2 . . . 1 . . . . . . . . . . . . . . . . . . . . . . . . . Feedback Events . | . . . . . . . . . . . . . . . . . . . . . . . . . . . . . . . . Feedback Blocked . | . . . . . . . . . . . . . . . . . . . . . . . . . . . . . . . . Robot Schematics Acquired 2 | . . . . . . . . . . . . . . . . . . . . . . . . . . . . 1 . 1 . Robots Built . | . . . . . . . . . . . . . . . . . . . . . . . . . . . . . . . . Authchips . | . . . . . . . . . . . . . . . . . . . . . . . . . . . . . . . . Time . | . . . . . . . . . . . . . . . . . . . . . . . . . . . . . . . . Total Robot Build Rating . | . . . . . . . . . . . . . . . . . . . . . . . . . . . . . . . . Part Schematics Acquired 14 | . . 1 . . . . . . . . . . . . 1 . . 4 . . . 1 . . . . . 4 1 . 2 Parts Built . | . . . . . . . . . . . . . . . . . . . . . . . . . . . . . . . . Authchips . | . . . . . . . . . . . . . . . . . . . . . . . . . . . . . . . . Time . | . . . . . . . . . . . . . . . . . . . . . . . . . . . . . . . . Total Part Build Rating . | . . . . . . . . . . . . . . . . . . . . . . . . . . . . . . . . Part Studies Acquired 4 | . . . . . . 1 . . . . . . . . 2 . . . . . . 1 . . . . . . . . . Parts Repaired 9 | . . 3 3 . . . . . . . . . . . . . . . . . . 1 . . . . . 2 . . . Time 444 | . . 78 103 . . . . . . . . . . . . . . . . . . 89 . . . . . 174 . . . Parts Recycled . | . . . . . . . . . . . . . . . . . . . . . . . . . . . . . . . . Recycled Matter . | . . . . . . . . . . . . . . . . . . . . . . . . . . . . . . . . Retrieved Matter . | . . . . . . . . . . . . . . . . . . . . . . . . . . . . . . . . Retrieved Components 5 | . . . . . . . . 3 . . . . . . 2 . . . . . . . . . . . . . . . . Parts Scanalyzed 2 | . . 1 . . . . . . . . . . . . . . . . . . . 1 . . . . . . . . . Part Schematics Acquired 2 | . . 1 . . . . . . . . . . . . . . . . . . . 1 . . . . . . . . . Parts Damaged . | . . . . . . . . . . . . . . . . . . . . . . . . . . . . . . . . Bothacking | -11 -10 -9 -9 -9 -9 -6 -6 -6 -6 -6 -6 -5 -5 -5 -5 -5 -5 -5 -4 -4 -4 -4 -4 -4 -4 -3 -3 -3 -2 -2 -2 ------------ Run | Yrd Mat Mat Sto Rec Scr Fac Was Fac Low Low Zio Pro Fac Was Fac Upp Upp Zhi Pro Fac Was Fac Upp Upp War Pro Res Tes Res Qua Frg Used RIF Installer . | . . . . . . . . . . . . . . . . . . . . . . . . . . . . . . . . Robots Hacked . | . . . . . . . . . . . . . . . . . . . . . . . . . . . . . . . . Non-combat . | . . . . . . . . . . . . . . . . . . . . . . . . . . . . . . . . Combat . | . . . . . . . . . . . . . . . . . . . . . . . . . . . . . . . . Robot Hacks Applied . | . . . . . . . . . . . . . . . . . . . . . . . . . . . . . . . . Relay Couplers Released . | . . . . . . . . . . . . . . . . . . . . . . . . . . . . . . . . Fabnet Peak Effective % . | . . . . . . . . . . . . . . . . . . . . . . . . . . . . . . . . Robots Rewired 6 | . . . . . . . . . . . . . . . . . . . . 1 . . . . 5 . . . . . . Allies Hacked . | . . . . . . . . . . . . . . . . . . . . . . . . . . . . . . . . Hacks Repelled . | . . . . . . . . . . . . . . . . . . . . . . . . . . . . . . . . Allies | -11 -10 -9 -9 -9 -9 -6 -6 -6 -6 -6 -6 -5 -5 -5 -5 -5 -5 -5 -4 -4 -4 -4 -4 -4 -4 -3 -3 -3 -2 -2 -2 -------- Run | Yrd Mat Mat Sto Rec Scr Fac Was Fac Low Low Zio Pro Fac Was Fac Upp Upp Zhi Pro Fac Was Fac Upp Upp War Pro Res Tes Res Qua Frg Total Allies 23 | . 1 . 10 . . 1 . . . . . . . . 2 . . . . 3 . . . . 5 . . . . 1 . Largest Group 10 | . 1 1 10 7 7 7 . . . . . . . . 1 . . . . 2 . . . . 5 . . . . 1 . Highest-Rated Group 300 | . 10 10 88 64 64 64 . . . . . . . . 26 . . . . 59 . . . . 300 . . . . 45 . Highest-Rated Ally 68 | . 10 10 16 16 16 26 . . . . . . . . 26 . . . . 49 . . . . 68 . . . . 45 . Total Orders 16 | . . . . . . . . . . . . . . . 7 . . . . . . . . . 6 . . . 2 1 . STAY 5 | . . . . . . . . . . . . . . . . . . . . . . . . . 5 . . . . . . FOLLOW 1 | . . . . . . . . . . . . . . . . . . . . . . . . . 1 . . . . . . EXPLORE 3 | . . . . . . . . . . . . . . . . . . . . . . . . . . . . . 2 1 . RETURN 7 | . . . . . . . . . . . . . . . 7 . . . . . . . . . . . . . . . . Ally Attacks 93 | . . . 46 11 . 10 . . . . . . . . . . . . . 3 . . . . 23 . . . . . . Total Damage 2023 | . . . 368 100 . 94 . . . . . . . . . . . . . 100 . . . . 1361 . . . . . . Kills 22 | . . . 7 2 . . . . . . . . . . . . . . . . . . . . 13 . . . . . . Allies Corrupted 1 | . . . . . . . . . . . . . . . . . . . . . . . . . . . . . . 1 . Allies Melted 5 | . . . . . . . . . . . . . . . . . . . . . . . . . . . . . . . 5 Intel | -11 -10 -9 -9 -9 -9 -6 -6 -6 -6 -6 -6 -5 -5 -5 -5 -5 -5 -5 -4 -4 -4 -4 -4 -4 -4 -3 -3 -3 -2 -2 -2 ------- Run | Yrd Mat Mat Sto Rec Scr Fac Was Fac Low Low Zio Pro Fac Was Fac Upp Upp Zhi Pro Fac Was Fac Upp Upp War Pro Res Tes Res Qua Frg Active Infowar (turns) 13010 | 10 1446 763 . . . 683 20 851 218 281 231 139 240 20 860 261 132 46 204 342 10 623 127 78 751 148 201 347 250 493 3235 Optics 8368 | . . . . . . . . . . . . . 240 20 860 261 132 46 204 342 10 623 127 78 751 148 201 347 250 493 3235 Sensors 9340 | . . . . . . 558 20 851 218 281 231 139 240 20 762 261 132 18 172 284 . 539 127 78 751 148 201 347 250 493 2219 IFF 125 | . . . . . . 125 . . . . . . . . . . . . . . . . . . . . . . . . . Seismic 2219 | 10 1446 763 . . . . . . . . . . . . . . . . . . . . . . . . . . . . . ECM 1667 | . . . . . . . . . . . . . . . 220 . . . 20 82 . 147 . . . . . 139 250 493 316 Robot Analysis Total 11 | . . 1 . . 6 . . . . . . . . . . . . 4 . . . . . . . . . . . . . Derelict Logs Recovered 9 | . . . . . . . . . 3 1 1 1 . . . 2 1 . . . . . . . . . . . . . . Drone Launches 11 | . . . . . . . . . . . . . . . 7 . . . . . . . . . . . . . 2 1 1 Drone Recoveries 10 | . . . . . . . . . . . . . . . 7 . . . . . . . . . . . . . 1 1 1 Exploration | -11 -10 -9 -9 -9 -9 -6 -6 -6 -6 -6 -6 -5 -5 -5 -5 -5 -5 -5 -4 -4 -4 -4 -4 -4 -4 -3 -3 -3 -2 -2 -2 ------------- Run | Yrd Mat Mat Sto Rec Scr Fac Was Fac Low Low Zio Pro Fac Was Fac Upp Upp Zhi Pro Fac Was Fac Upp Upp War Pro Res Tes Res Qua Frg Turns Passed 21730 | 133 1562 2655 2558 1148 2776 791 20 851 218 281 231 139 240 20 860 261 132 46 204 342 10 623 127 78 751 148 201 347 250 493 3234 Spaces Moved 29675 | 72 624 1091 957 549 1455 1550 76 1970 691 908 871 557 662 90 1662 778 458 147 557 649 67 1515 391 240 1005 410 573 577 653 1284 6586 Core 3 | 3 . . . . . . . . . . . . . . . . . . . . . . . . . . . . . . . Treads . | . . . . . . . . . . . . . . . . . . . . . . . . . . . . . . . . Legs 4745 | 69 624 1091 957 549 1455 . . . . . . . . . . . . . . . . . . . . . . . . . . Wheels . | . . . . . . . . . . . . . . . . . . . . . . . . . . . . . . . . Hover . | . . . . . . . . . . . . . . . . . . . . . . . . . . . . . . . . Flight 24927 | . . . . . . 1550 76 1970 691 908 871 557 662 90 1662 778 458 147 557 649 67 1515 391 240 1005 410 573 577 653 1284 6586 Fastest Speed 6 | 50 120 120 190 190 120 24 24 24 24 24 24 24 20 20 20 20 20 20 20 20 6 20 28 28 21 21 21 15 19 19 7 Average Speed 48 | 117 187 186 190 190 185 25 24 24 24 24 24 24 23 22 22 23 22 21 20 20 12 21 28 28 29 23 22 22 19 21 20 Slowest Speed 260 | 120 190 260 260 190 190 30 24 24 24 24 24 24 24 24 93 24 24 24 20 20 20 28 28 28 103 25 103 23 21 106 37 Overloaded Moves 84 | . . . . . . . . . . . . . . . . . . . . . 34 . . . . . . 10 . . 40 Propulsion Burnouts . | . . . . . . . . . . . . . . . . . . . . . . . . . . . . . . . . Robots Hopped 110 | . . . . . . 10 . 13 . 1 . . 3 . 5 . . . . 8 . 3 1 . 3 . . 4 . 6 53 Potential Cave-ins 10 | . . . . . . . . . . . . . . . . . . . 2 . . . . . . . . . . 5 3 Cave-ins Triggered 1 | . . . . . . . . . . . . . . . . . . . . . . . . . . . . . . 1 . Teleports 3 | . . . . . . . . . . . . . . . . . . . . . . . . . . . . . . 2 1 Exploration Rate (%) 64 | 4 83 83 91 95 88 45 72 56 85 85 84 83 19 84 43 89 68 63 51 27 89 39 55 55 93 62 8 62 23 94 76 Regions Visited 31 Branch Regions 18 Pre-discovered Areas 17 | . 1 1 . 6 . 1 . . . 2 1 . . . . 1 1 3 . . . . . . . . . . . . . Known Exits Taken 19 | . 1 1 . 1 . . . 1 1 1 1 1 . . 1 1 1 1 1 . . 1 . . . 1 1 1 1 1 . Unknown Exits Taken 6 | 1 . . 1 . 1 . . . . . . . . . . . . . . . . . 1 1 1 . . . . . . Scrap Searched 32 | . . . . . 8 . . . 4 2 3 2 . . . 4 2 . 1 . . . 2 3 . 1 . . . . . Spaces Dug 286 | . 3 3 1 . . 8 . 38 11 9 . 1 11 . 35 17 8 . 15 18 . 14 6 2 4 13 6 8 11 17 27 Terrain Destroyed 833 | . 3 58 60 . . 8 . 38 11 9 . 1 11 . 88 60 8 . 15 101 . 14 6 2 102 13 6 8 11 56 144 Melee 231 | . . . 1 . . 8 . 31 9 8 . 1 9 . 31 16 8 . 10 16 . 11 6 1 4 11 6 5 11 6 22 Projectile 93 | . 3 3 . . . . . 7 2 1 . . 2 . 4 1 . . 5 2 . 3 . 1 . 2 . 3 . 11 43 AOE 484 | . . 55 59 . . . . . . . . . . . 53 43 . . . 83 . . . . 98 . . . . 39 54 Terrain Rammed . | . . . . . . . . . . . . . . . . . . . . . . . . . . . . . . . . Walls Destroyed . | . . . . . . . . . . . . . . . . . . . . . . . . . . . . . . . . Machines Disabled . | . . . . . . . . . . . . . . . . . . . . . . . . . . . . . . . . Actions | -11 -10 -9 -9 -9 -9 -6 -6 -6 -6 -6 -6 -5 -5 -5 -5 -5 -5 -5 -4 -4 -4 -4 -4 -4 -4 -3 -3 -3 -2 -2 -2 --------- Run | Yrd Mat Mat Sto Rec Scr Fac Was Fac Low Low Zio Pro Fac Was Fac Upp Upp Zhi Pro Fac Was Fac Upp Upp War Pro Res Tes Res Qua Frg Total 35172 | 94 884 1523 1518 645 1539 1870 76 2239 720 945 892 560 723 89 2012 806 467 160 619 785 67 1737 400 248 1417 441 634 775 747 1455 8085 Wait 3743 | . 151 254 418 93 62 205 . 206 15 24 15 3 41 . 253 . 2 . 41 88 . 152 . 2 327 13 40 177 67 121 973 Move 29457 | 71 623 1090 956 548 1454 1531 75 1944 690 905 870 556 657 89 1652 777 457 146 556 634 66 1508 388 239 999 409 572 568 652 1270 6505 Hop 79 | . . . . . . 9 . 12 . 1 . . 2 . 4 . . . . 7 . 3 1 . 2 . . 4 . 6 28 Pick Up 173 | 4 16 25 13 . 4 20 . 5 . . 2 . 5 . 3 . . 3 . 3 . 6 . 2 2 1 2 2 1 3 51 Fast Attach 98 | 7 2 7 5 . 4 13 1 1 . . 1 . . . . . . 4 . . . 7 2 1 4 . 2 3 1 6 27 Attach 68 | . 2 7 2 . . 11 . 1 . 1 1 . 2 . 2 . . 1 . 2 1 7 2 1 1 1 2 . 1 3 17 Detach 29 | . . 1 . . . 4 . 1 . 1 . . . . . . . . . . . 4 1 1 2 . 2 . . 2 10 Swap 170 | 1 14 28 19 . 3 4 . 11 4 1 1 . 2 . 34 6 . . 6 10 . 3 . . 3 . 2 1 . 3 14 Drop 190 | . 11 22 17 . 12 20 . 8 . . 2 . 3 . 2 . . 6 1 1 . 5 . . 7 . 3 4 . 6 60 Fire 631 | 11 65 89 81 4 . 36 . 7 2 1 . . 2 . 16 7 . . 5 7 . 3 . 1 30 2 . 5 . 23 234 Melee 364 | . . . 2 . . 17 . 43 9 11 . 1 9 . 46 16 8 . 10 28 . 39 6 1 5 15 9 11 25 11 42 Ram . | . . . . . . . . . . . . . . . . . . . . . . . . . . . . . . . . Kick . | . . . . . . . . . . . . . . . . . . . . . . . . . . . . . . . . Crush . | . . . . . . . . . . . . . . . . . . . . . . . . . . . . . . . . Escape Stasis 70 | . . . 5 . . . . . . . . . . . . . . . . . . . . . . . . . . 1 64 Rewire 40 | . . . . . . . . . . . . . . . . . . . . 5 . . . . 35 . . . . . . Trap . | . . . . . . . . . . . . . . . . . . . . . . . . . . . . . . . . Miscellaneous 60 | . . . . . . . . . . . . . . . . . . . . . . . . . . . . . . . 60 Route ------- -11/Scrapyard -10/Materials (discovered 5 exits: *Mat x3 / [*Min] / Sub) -9/Materials (discovered 5 exits: *Mat x3 / [*Min] / *Sto) -9/Storage (discovered 2 exits: *Mat / *Rec) -9/Recycling (discovered 2 exits: *Fac / *Scr) -9/Scraptown (discovered 2 exits: *Fac x2) -6/Factory (discovered 2 exits: *Fac / *Low) -6/Waste -6/Factory -6/Lower Caves -6/Lower Caves (discovered 2 exits: *Fac / *Zio) -6/Zion -5/Proximity Caves -5/Factory (discovered 4 exits: *Fac x2 / *Upp x2) -5/Waste -5/Factory (discovered 6 exits: *Fac x4 / *Upp x2) -5/Upper Caves -5/Upper Caves -5/Zhirov -4/Proximity Caves -4/Factory (discovered 2 exits: *Upp / [*Arm]) -4/Waste -4/Factory (discovered 4 exits: *Res / *Upp x2 / [*Arm]) -4/Upper Caves -4/Upper Caves (discovered 2 exits: *Res / *War) -4/Warlord -3/Proximity Caves -3/Research (discovered 2 exits: *Tes x2) -3/Testing -2/Research (discovered 3 exits: *Acc / *Qua x2) -2/Quarantine (discovered 3 exits: *Acc / [*Sec] / *Frg) -2/Protoforge 0bPrime History --------- Turn | Location | Event 3 | -11/Scrapyard | Discovered new exit (range 16) 134 | -11/Scrapyard | Entered Materials 300 | -10/Materials | Build established: Mutant 939 | -10/Materials | Discovered new exit (range 16) 1059 | -10/Materials | Core integrity fell below 50% 1116 | -10/Materials | Discovered new exit (range 16) 1216 | -10/Materials | Discovered new exit (range 7) 1521 | -10/Materials | Identified exit to Materials 1550 | -10/Materials | Learned location of Mines (-9) 1574 | -10/Materials | Identified exit to Subcaves 1583 | -10/Materials | Learned 4 Recycling zone layouts 1696 | -10/Materials | Entered another Materials area 1696 | -9/Materials | Accompanied by 1 ally 1696 | -9/Materials | Evolved 2 slots: Propulsion x1, Weapon x1 1697 | -9/Materials | Identified exit to Materials 2180 | -9/Materials | Discovered new exit (range 12) 2247 | -9/Materials | Build established: Scavenger-Gunner 2518 | -9/Materials | Discovered new exit (range 13) 2960 | -9/Materials | Build established: Scavenger-Tank 2971 | -9/Materials | Identified exit to Storage 3014 | -9/Materials | Learned 2 Materials zone layouts 3049 | -9/Materials | Learned location of 1 exit from Recycling 3075 | -9/Materials | Learned location of 2 exits from Materials 3092 | -9/Materials | Learned Storage trap positions 3120 | -9/Materials | Loaded intel: 2 recycling unit locations 3157 | -9/Materials | Learned location of 3 exits from Materials 3256 | -9/Materials | Central database locked down 3452 | -9/Materials | Build established: Tank 3732 | -9/Materials | Repaired Aluminum Leg 3759 | -9/Materials | Repaired Aluminum Leg 3785 | -9/Materials | Repaired Aluminum Leg 4351 | -9/Materials | Entered Storage 4352 | -9/Storage | Loaded intel: 5 trap records 4385 | -9/Storage | Build established: Scavenger-Tank 4909 | -9/Storage | Core integrity fell below 50% 4972 | -9/Storage | Destroyed 7 combat bots 4998 | -9/Storage | Repaired Grenade Launcher 5050 | -9/Storage | Repaired Imp. Assault Rifle 5351 | -9/Storage | Repaired Aluminum Leg 5410 | -9/Storage | Build established: Tank 5419 | -9/Storage | Discovered exit to Materials (range 15) 5722 | -9/Storage | Used back door to open Recycling access 5722 | -9/Storage | Discovered new exit (range 4) 5763 | -9/Storage | Garrison activated, responded to threat 5932 | -9/Storage | Assisted by bots powering up and referring to "LRC-V3" 6238 | -9/Storage | Build established: Commander-Tank 6909 | -9/Storage | Entered Recycling 6909 | -9/Recycling | Accompanied by 7 allies 6910 | -9/Recycling | Identified exit to Factory 6911 | -9/Recycling | Identified exit to Scraptown 7263 | -9/Recycling | Learned location of 1 exit from Recycling 7319 | -9/Recycling | Learned 2 Storage zone layouts 7427 | -9/Recycling | Learned 2 Storage zone layouts 7447 | -9/Recycling | Learned location of 1 exit from Recycling 7460 | -9/Recycling | Learned 2 Materials zone layouts 7483 | -9/Recycling | Learned location of Mines (-8) 7967 | -9/Recycling | Scanned before Scraplab entrance 7994 | -9/Recycling | Entered Scraplab 8057 | -9/Recycling | Entered Scraptown 8057 | -9/Scraptown | Accompanied by 7 allies 8057 | -9/Scraptown | System corruption cleaned by C-Scrubber 8422 | -9/Scraptown | Discovered new exit (range 7) 8512 | -9/Scraptown | Visited SPCMW 8527 | -9/Scraptown | Visited Bundlers 8946 | -9/Scraptown | Visited Assassins FH 8977 | -9/Scraptown | Visited The Evicted 8998 | -9/Scraptown | Visited Cyclists 9072 | -9/Scraptown | Visited CR-KLE's Repair Center 9108 | -9/Scraptown | Visited Fellowship of the Rings 9154 | -9/Scraptown | Visited UFD Registry 9154 | -9/Scraptown | Registered with UFD as "Bioface" 9199 | -9/Scraptown | Visited Science Guys 9252 | -9/Scraptown | Visited Science Testing Area 9275 | -9/Scraptown | Visited LU-1G1's Boring Crew 9337 | -9/Scraptown | Visited Scrap Suit Storage 9361 | -9/Scraptown | Visited Junk Repository 9378 | -9/Scraptown | Visited A0-MCA Data Center 9392 | -9/Scraptown | Given a B+ rating by A0-MCA 9394 | -9/Scraptown | Found A0-MCA's Component Scanner 9445 | -9/Scraptown | Visited Observation Area 9484 | -9/Scraptown | Visited Abandonware Association 9515 | -9/Scraptown | Visited Analyses Database 10147 | -9/Scraptown | Learned abandonware demo "REVENGE.EXE" 10516 | -9/Scraptown | CR-KLE repaired 6 parts 10726 | -9/Scraptown | Met Optimus 10726 | -9/Scraptown | Accepted into 0bPrime 10803 | -9/Scraptown | Discovered new exit (range 5) 10833 | -9/Scraptown | Entered Factory 10833 | -6/Factory | Accompanied by 7 allies 10833 | -6/Factory | Evolved 6 slots: Propulsion x2, Utility x4 11278 | -6/Factory | Discovered new exit (range 13) 11381 | -6/Factory | Lost 3 parts (2u1w) 11434 | -6/Factory | Loaded intel: 8 recycling unit locations 11436 | -6/Factory | Spotted B-75 Beast 11437 | -6/Factory | Learned location of Protoforge (-2) 11491 | -6/Factory | Discovered new exit (range 13) 11614 | -6/Factory | Central database locked down 11624 | -6/Factory | Sucked down chute 11624 | -6/Factory | Entered Waste 11629 | -6/Waste | Spotted C-40 Crusher 11631 | -6/Waste | Spotted C-40 Crusher 11631 | -6/Waste | Spotted C-40 Crusher 11634 | -6/Waste | Spotted C-40 Crusher 11639 | -6/Waste | EMP discharged 11639 | -6/Waste | Discovered new exit (range 12) 11644 | -6/Waste | Identified exit to Factory 11644 | -6/Waste | Entered Factory 11794 | -6/Factory | Build established: Sprinter 11913 | -6/Factory | Discovered new exit (range 8) 11914 | -6/Factory | Identified exit to Lower Caves 12039 | -6/Factory | Loaded intel: 8 recycling unit locations 12495 | -6/Factory | Entered Lower Caves 12586 | -6/Lower Caves | Learned 8 Factory zone layouts 12624 | -6/Lower Caves | Discovered new exit (range 13) 12625 | -6/Lower Caves | Learned location of 1 exit from Factory 12713 | -6/Lower Caves | Identified exit to Lower Caves 12713 | -6/Lower Caves | Entered another Lower Caves area 12721 | -6/Lower Caves | Discovered new exit (range 15) 12796 | -6/Lower Caves | Encountered a Warlord checkpoint 12833 | -6/Lower Caves | Discovered new exit (range 15) 12866 | -6/Lower Caves | Identified exit to Zion 12918 | -6/Lower Caves | Learned location of Zion (-6) 12939 | -6/Lower Caves | Entered an active Warlord outpost 12942 | -6/Lower Caves | Learned 8 Factory zone layouts 12942 | -6/Lower Caves | Learned Factory stockpile data 12942 | -6/Lower Caves | Learned Research stockpile data 12942 | -6/Lower Caves | Learned Extension terminal intel 12942 | -6/Lower Caves | Learned Armory terminal intel 12994 | -6/Lower Caves | Entered Zion 12998 | -6/Zion | Given the Hacking Drone Bay 13001 | -6/Zion | Found Hacking Drone Bay 13011 | -6/Zion | Found CR-A16's Pointy Stick 13022 | -6/Zion | Discovered new exit (range 14) 13031 | -6/Zion | Given A8's code to call for help 13047 | -6/Zion | System corruption cleaned by Quarantine Array 13075 | -6/Zion | Visited the Megawrench Repair Shop 13140 | -6/Zion | Turned away by Imprinter 13193 | -6/Zion | Megawrench repaired 6 parts 13224 | -6/Zion | Identified exit to Proximity Caves 13225 | -6/Zion | Entered Proximity Caves 13326 | -5/Proximity Caves | Learned Factory emergency access door positions 13326 | -5/Proximity Caves | Discovered new exit (range 7) 13364 | -5/Proximity Caves | Identified exit to Factory 13364 | -5/Proximity Caves | Entered Factory 13364 | -5/Factory | Evolved 2 slots: Propulsion x1, Utility x1 13365 | -5/Factory | Identified exit to Factory 13366 | -5/Factory | Identified exit to Upper Caves 13471 | -5/Factory | Found Mni. Smartbomb Launcher 13475 | -5/Factory | Found Faulty Mni. Smartbomb Launcher 13477 | -5/Factory | Found Mni. Smartbomb Launcher 13493 | -5/Factory | Spotted B-75 Beast 13554 | -5/Factory | Loaded intel: 8 recycling unit locations 13604 | -5/Factory | Sucked down chute 13604 | -5/Factory | Entered Waste 13612 | -5/Waste | Spotted C-40 Crusher 13614 | -5/Waste | Spotted C-40 Crusher 13617 | -5/Waste | Spotted C-40 Crusher 13617 | -5/Waste | Spotted C-40 Crusher 13618 | -5/Waste | Discovered new exit (range 22) 13619 | -5/Waste | EMP discharged 13621 | -5/Waste | Spotted C-40 Crusher 13624 | -5/Waste | Identified exit to Factory 13624 | -5/Waste | Entered Factory 13685 | -5/Factory | Build established: Scout 13823 | -5/Factory | Discovered exit to Upper Caves (range 22) 14196 | -5/Factory | Loaded intel: 8 recycling unit locations 14484 | -5/Factory | Entered Upper Caves 14564 | -5/Upper Caves | Encountered a Warlord checkpoint 14568 | -5/Upper Caves | Learned Factory stockpile data 14734 | -5/Upper Caves | Attracted the attention of an 0b10 checkpoint 14743 | -5/Upper Caves | Discovered new exit (range 7) 14744 | -5/Upper Caves | Identified exit to Upper Caves 14745 | -5/Upper Caves | Entered another Upper Caves area 14757 | -5/Upper Caves | Build established: Hacker-Scout 14784 | -5/Upper Caves | Learned location of Warlord (-4) 14854 | -5/Upper Caves | Discovered new exit (range 10) 14857 | -5/Upper Caves | Identified exit to Zhirov 14877 | -5/Upper Caves | Entered Zhirov 14877 | -5/Zhirov | Discovered new exit (range 3) 14882 | -5/Zhirov | Met Zhirov 14889 | -5/Zhirov | Learned location of Quarantine (-2) 14889 | -5/Zhirov | Learned location of Command (-1) 14891 | -5/Zhirov | Zhirov requested help retrieving the SGEMP Prototype 14896 | -5/Zhirov | Found Alien Artifact 14896 | -5/Zhirov | Identified Integrated Reactor 14896 | -5/Zhirov | Installed Integrated Reactor, increased core energy generation (+10) 14902 | -5/Zhirov | Found Alien Artifact 14922 | -5/Zhirov | Identified exit to Proximity Caves 14923 | -5/Zhirov | Entered Proximity Caves 15026 | -4/Proximity Caves | Spotted B-86 Titan 15124 | -4/Proximity Caves | Discovered exit to Factory (range 16) 15127 | -4/Proximity Caves | Entered Factory 15127 | -4/Factory | Evolved 2 slots: Utility x2 15171 | -4/Factory | Discovered new exit (range 22) 15195 | -4/Factory | Loaded intel: 8 recycling unit locations 15313 | -4/Factory | Discovered new exit (range 14) 15445 | -4/Factory | Found Exp. Hacking Suite 15455 | -4/Factory | Spotted B-86 Titan 15469 | -4/Factory | Sucked down chute 15469 | -4/Factory | Entered Waste 15474 | -4/Waste | Spotted C-40 Crusher 15474 | -4/Waste | Spotted C-40 Crusher 15476 | -4/Waste | Spotted C-40 Crusher 15477 | -4/Waste | Spotted C-40 Crusher 15478 | -4/Waste | Spotted C-40 Crusher 15478 | -4/Waste | Spotted C-40 Crusher 15479 | -4/Waste | Discovered new exit (range 10) 15479 | -4/Waste | Identified exit to Factory 15479 | -4/Waste | Entered Factory 15492 | -4/Factory | Lost 4 parts (1p2u1w) 15664 | -4/Factory | Spotted B-86 Titan 15746 | -4/Factory | Discovered new exit (range 11) 15758 | -4/Factory | Unchained authorized (DW-4LL) 15787 | -4/Factory | Noticed UFD Elites at a Recycling Unit 15819 | -4/Factory | Loaded intel: 8 recycling unit locations 15841 | -4/Factory | Discovered new exit (range 12) 15843 | -4/Factory | Identified exit to Upper Caves 15890 | -4/Factory | DW-4LL burst out of a wall 15937 | -4/Factory | Discovered new exit (range 22) 15974 | -4/Factory | Repaired Cld. Nuclear Pulse Thruster 16004 | -4/Factory | Identified exit to Research 16038 | -4/Factory | DW-4LL burst out of a wall 16040 | -4/Factory | Discovered exit to Upper Caves (range 7) 16048 | -4/Factory | System corruption reached 10% 16102 | -4/Factory | Entered Upper Caves 16124 | -4/Upper Caves | Attracted the attention of an 0b10 checkpoint 16150 | -4/Upper Caves | Lost 8 parts (1p3n2u2w) 16225 | -4/Upper Caves | Discovered new exit (range 14) 16229 | -4/Upper Caves | Entered another Upper Caves area 16241 | -4/Upper Caves | Discovered exit to Research (range 8) 16254 | -4/Upper Caves | Encountered a Warlord checkpoint 16300 | -4/Upper Caves | Discovered new exit (range 2) 16307 | -4/Upper Caves | Entered Warlord 16317 | -4/Warlord | System corruption cleaned by Quarantine Array 16325 | -4/Warlord | Build established: Hacker-Sprinter 16568 | -4/Warlord | Visited the Vortex Lab 16570 | -4/Warlord | Found Vortex Lance 16574 | -4/Warlord | Warlord's base attacked by MAIN.C 16588 | -4/Warlord | Rebuked by Warlord 16595 | -4/Warlord | Found Ghost Barrier 16638 | -4/Warlord | Spotted B-86 Titan 16853 | -4/Warlord | Destroyed 8 combat bots 16924 | -4/Warlord | Warlord forces counterattacked 16975 | -4/Warlord | Lost 4 allies 17027 | -4/Warlord | Spotted Executioner 17027 | -4/Warlord | Spotted Executioner 17032 | -4/Warlord | Spotted Executioner 17034 | -4/Warlord | Discovered new exit (range 19) 17041 | -4/Warlord | Allies destroyed Executioner 17057 | -4/Warlord | Destroyed 10 combat bots 17058 | -4/Warlord | Entered Proximity Caves 17064 | -3/Proximity Caves | Spotted B-86 Titan 17071 | -3/Proximity Caves | Lost 9 allies 17202 | -3/Proximity Caves | Discovered exit to Research (range 17) 17206 | -3/Proximity Caves | Entered Research 17206 | -3/Research | Evolved 2 slots: Power x1, Propulsion x1 17234 | -3/Research | Identified exit to Testing 17283 | -3/Research | Found Exp. Signal Interpreter 17298 | -3/Research | Spotted B-86 Titan 17393 | -3/Research | Unchained authorized (DW-4LL) 17407 | -3/Research | Entered Testing 17487 | -3/Testing | Repaired Impulse Thruster+ 17604 | -3/Testing | Repaired Broken Cld. Nuclear Pulse Thruster 17615 | -3/Testing | Protovariant out of control (PX-ZGEFF3XU80) 17615 | -3/Testing | Unleashed a protovariant (PX-ZGEFF3XU80) 17628 | -3/Testing | Unchained authorized (DW-4LL) 17657 | -3/Testing | Found Perforator 17670 | -3/Testing | Spotted Striker 17681 | -3/Testing | Spotted Alpha 7 17689 | -3/Testing | Spotted Striker 17727 | -3/Testing | DW-4LL burst out of a wall 17737 | -3/Testing | Discovered new exit (range 16) 17754 | -3/Testing | Identified exit to Research 17754 | -3/Testing | Entered Research 17754 | -2/Research | Evolved 2 slots: Propulsion x1, Utility x1 17756 | -2/Research | Identified exit to Quarantine 17821 | -2/Research | Discovered new exit (range 36) 17834 | -2/Research | Loaded intel: 5 recycling unit locations 17907 | -2/Research | Build established: Hacker-Ninja 18004 | -2/Research | Entered Quarantine 18010 | -2/Quarantine | Found Alien Artifact 18010 | -2/Quarantine | Identified Transdimensional Reconstructor (x2) 18010 | -2/Quarantine | Warped through subspace 18019 | -2/Quarantine | Found Alien Artifact 18019 | -2/Quarantine | Identified Hpw. Transdimensional Reconstructor 18019 | -2/Quarantine | Warped through subspace 18066 | -2/Quarantine | Found Alien Artifact 18205 | -2/Quarantine | Scanned by Researcher 18236 | -2/Quarantine | Crushed by falling debris 18237 | -2/Quarantine | System corruption reached 10% 18246 | -2/Quarantine | Discovered new exit (range 13) 18267 | -2/Quarantine | Lost 3 parts (2n1u) 18384 | -2/Quarantine | Found Alien Slashing Weapon 18384 | -2/Quarantine | Identified Sigix Broadsword 18433 | -2/Quarantine | Found Alien Artifact 18465 | -2/Quarantine | Found Alien Artifact 18478 | -2/Quarantine | Spotted Fortress 18496 | -2/Quarantine | Discovered new exit (range 6) 18496 | -2/Quarantine | Discovered new exit (range 6) 18497 | -2/Quarantine | Identified exit to Protoforge 18497 | -2/Quarantine | Entered Protoforge 18543 | -2/Protoforge | Build established: Ninja 18660 | -2/Protoforge | Superfortress began startup sequence 18757 | -2/Protoforge | Discovered new exit (range 22) 18879 | -2/Protoforge | Spotted Overlord 18977 | -2/Protoforge | Found Exp. System Purifier 19004 | -2/Protoforge | Spotted EXE-6 19005 | -2/Protoforge | Spotted EXE-6 19013 | -2/Protoforge | Spotted SKR-2 19013 | -2/Protoforge | Spotted SKR-2 19020 | -2/Protoforge | UFD initiated attack on Protoforge 19020 | -2/Protoforge | Loaded intel: 3 recycling unit locations 19071 | -2/Protoforge | Spotted SKR-2 19071 | -2/Protoforge | Optimus greeted in Protoforge 19087 | -2/Protoforge | Identified Dimensional Node Initializer 19087 | -2/Protoforge | Initialized slip node 19100 | -2/Protoforge | Found Exp. Core Analyzer 19115 | -2/Protoforge | Forge Plexus network access discovered 19130 | -2/Protoforge | Spotted EXE-6 19134 | -2/Protoforge | Spotted EXE-6 19148 | -2/Protoforge | Spotted AP7-3 19160 | -2/Protoforge | Spotted AP7-3 19164 | -2/Protoforge | Spotted Hotshot 19177 | -2/Protoforge | Identified Terrabomb 19177 | -2/Protoforge | Used Terrabomb 19177 | -2/Protoforge | Spotted Hotshot 19192 | -2/Protoforge | Identified Subatomic Replicator 19192 | -2/Protoforge | Used Subatomic Replicator to create Alien Artifact 19206 | -2/Protoforge | Lost 6 allies 19213 | -2/Protoforge | Identified Supercharged TR 19213 | -2/Protoforge | Warped through subspace to slip node 19214 | -2/Protoforge | Optimus attacked Superfortress 19215 | -2/Protoforge | Spotted Hotshot 19218 | -2/Protoforge | Spotted Striker 19223 | -2/Protoforge | Spotted Executioner 19224 | -2/Protoforge | Spotted Hotshot 19231 | -2/Protoforge | Found Cep. Zero-point Core 19251 | -2/Protoforge | Found Centrium Heavy Armor Plating 19257 | -2/Protoforge | Lost 3 allies 19276 | -2/Protoforge | Spotted B-90 Cyclops 19309 | -2/Protoforge | Spotted Striker 19312 | -2/Protoforge | Spotted Executioner 19312 | -2/Protoforge | Spotted Hotshot 19312 | -2/Protoforge | Spotted Hotshot 19333 | -2/Protoforge | Spotted Executioner 19335 | -2/Protoforge | Spotted Executioner 19341 | -2/Protoforge | Spotted Executioner 19352 | -2/Protoforge | Spotted Striker 19353 | -2/Protoforge | Found Exp. Targeting Computer 19354 | -2/Protoforge | Spotted Striker 19359 | -2/Protoforge | Destroyed Striker 19362 | -2/Protoforge | Destroyed Striker 19370 | -2/Protoforge | Lost 3 allies 19373 | -2/Protoforge | Spotted Executioner 19412 | -2/Protoforge | Spotted Executioner 19418 | -2/Protoforge | Spotted Executioner 19421 | -2/Protoforge | Destroyed Executioner 19426 | -2/Protoforge | UFD reported confirmed Drillbomb installation 19472 | -2/Protoforge | Build established: Scavenger-Scout 19490 | -2/Protoforge | UFD reported confirmed Drillbomb installation 19512 | -2/Protoforge | Spotted Executioner 19621 | -2/Protoforge | Spotted Executioner 19622 | -2/Protoforge | Spotted Striker 19624 | -2/Protoforge | Spotted Striker 19643 | -2/Protoforge | Spotted Striker 19643 | -2/Protoforge | Spotted Executioner 19690 | -2/Protoforge | Found UFD Drillbomb 19703 | -2/Protoforge | Installed UFD Drillbomb at designated target 19703 | -2/Protoforge | UFD reported confirmed Drillbomb installation 19861 | -2/Protoforge | Spotted V982-t 19861 | -2/Protoforge | Spotted V810-o 19865 | -2/Protoforge | Found Cep. Helical Railcannon 19872 | -2/Protoforge | Spotted Immortal 19872 | -2/Protoforge | Spotted Immortal 19873 | -2/Protoforge | Spotted Decapitator 19873 | -2/Protoforge | Spotted Decapitator 19873 | -2/Protoforge | Spotted Decapitator 19873 | -2/Protoforge | Spotted Decapitator 20060 | -2/Protoforge | Destroyed Immortal 20079 | -2/Protoforge | Destroyed Immortal 20088 | -2/Protoforge | Found Crosscalibrator 20095 | -2/Protoforge | Found Faulty Cep. Plasma Driver 20105 | -2/Protoforge | Spotted Striker 20190 | -2/Protoforge | Spotted Striker 20191 | -2/Protoforge | Spotted Executioner 20192 | -2/Protoforge | Spotted Executioner 20210 | -2/Protoforge | Spotted Striker 20297 | -2/Protoforge | Spotted Striker 20297 | -2/Protoforge | Spotted Striker 20301 | -2/Protoforge | Destroyed Striker 20304 | -2/Protoforge | Destroyed Striker 20332 | -2/Protoforge | Spotted Striker 20332 | -2/Protoforge | Spotted Executioner 20334 | -2/Protoforge | UFD reported confirmed Drillbomb installation 20337 | -2/Protoforge | Destroyed Executioner 20362 | -2/Protoforge | Found UFD Drillbomb 20365 | -2/Protoforge | Destroyed 7 combat bots 20371 | -2/Protoforge | Lost 6 allies 20384 | -2/Protoforge | Installed UFD Drillbomb at designated target 20384 | -2/Protoforge | UFD reported confirmed Drillbomb installation 20401 | -2/Protoforge | Found UFD Drillbomb 20425 | -2/Protoforge | Installed UFD Drillbomb at designated target 20425 | -2/Protoforge | UFD reported confirmed Drillbomb installation 20445 | -2/Protoforge | Destroyed Striker 20450 | -2/Protoforge | Found UFD Drillbomb 20459 | -2/Protoforge | Spotted Executioner 20470 | -2/Protoforge | Spotted Executioner 20484 | -2/Protoforge | Destroyed Executioner 20504 | -2/Protoforge | Installed UFD Drillbomb at designated target 20504 | -2/Protoforge | UFD reported confirmed Drillbomb installation 20538 | -2/Protoforge | Spotted Executioner 20538 | -2/Protoforge | Spotted Striker 20557 | -2/Protoforge | Destroyed Striker 20568 | -2/Protoforge | P-80 Master assimilated allied 02FCF-D 20580 | -2/Protoforge | Found Exp. Core Analyzer 20583 | -2/Protoforge | Destroyed Executioner 20597 | -2/Protoforge | Found UFD Drillbomb 20615 | -2/Protoforge | Spotted Striker 20630 | -2/Protoforge | Spotted Executioner 20631 | -2/Protoforge | Destroyed Executioner 20632 | -2/Protoforge | Spotted Striker 20648 | -2/Protoforge | Destroyed Striker 20653 | -2/Protoforge | Spotted Executioner 20655 | -2/Protoforge | Spotted Executioner 20657 | -2/Protoforge | Spotted Executioner 20678 | -2/Protoforge | Spotted Decapitator 20678 | -2/Protoforge | Spotted V926-l 20678 | -2/Protoforge | Spotted V306-s 20678 | -2/Protoforge | Spotted Decapitator 20721 | -2/Protoforge | Spotted Hotshot 20721 | -2/Protoforge | Spotted Hotshot 20726 | -2/Protoforge | Spotted 02F03-K 20731 | -2/Protoforge | Destroyed Decapitator 20734 | -2/Protoforge | Destroyed Decapitator 20738 | -2/Protoforge | Destroyed 02F03-K 20754 | -2/Protoforge | Spotted Striker 20784 | -2/Protoforge | Destroyed Hotshot 20792 | -2/Protoforge | Destroyed Hotshot 20799 | -2/Protoforge | Lost 3 allies 20807 | -2/Protoforge | Spotted Executioner 20808 | -2/Protoforge | Spotted Striker 20810 | -2/Protoforge | Core integrity fell below 50% 20988 | -2/Protoforge | Spotted Striker 20990 | -2/Protoforge | Found Exp. Terror Saw 21008 | -2/Protoforge | Found Cep. Antigrav Storage Unit 21023 | -2/Protoforge | Spotted Striker 21026 | -2/Protoforge | Destroyed Striker 21032 | -2/Protoforge | Destroyed Striker 21051 | -2/Protoforge | Found Exp. Jetlance 21052 | -2/Protoforge | Found Exp. Cloaking Device 21056 | -2/Protoforge | Build established: Scavenger-Sprinter 21083 | -2/Protoforge | Found Faulty Cep. Fieldthrust Drive 21085 | -2/Protoforge | Found Cep. Fieldthrust Drive 21088 | -2/Protoforge | Found Cep. Fieldthrust Drive 21143 | -2/Protoforge | Spotted Executioner 21144 | -2/Protoforge | Spotted Striker 21149 | -2/Protoforge | Spotted Striker 21153 | -2/Protoforge | Spotted Striker 21167 | -2/Protoforge | Found UFD Drillbomb 21203 | -2/Protoforge | UFD reported confirmed Drillbomb installation 21208 | -2/Protoforge | Spotted Executioner 21220 | -2/Protoforge | Spotted Striker 21232 | -2/Protoforge | Destroyed Executioner 21234 | -2/Protoforge | Destroyed Striker 21267 | -2/Protoforge | Lost 4 allies 21267 | -2/Protoforge | Installed UFD Drillbomb at designated target 21267 | -2/Protoforge | UFD reported confirmed Drillbomb installation 21280 | -2/Protoforge | Spotted Executioner 21284 | -2/Protoforge | Spotted Striker 21286 | -2/Protoforge | Spotted Striker 21286 | -2/Protoforge | Spotted Striker 21320 | -2/Protoforge | Found UFD Drillbomb 21370 | -2/Protoforge | Destroyed Executioner 21391 | -2/Protoforge | Spotted Striker 21394 | -2/Protoforge | Spotted Striker 21406 | -2/Protoforge | Destroyed Striker 21418 | -2/Protoforge | Spotted Striker 21418 | -2/Protoforge | Spotted Executioner 21482 | -2/Protoforge | Destroyed Executioner 21512 | -2/Protoforge | Found Cep. Helical Railcannon 21523 | -2/Protoforge | Destroyed Striker 21617 | -2/Protoforge | Spotted Executioner 21618 | -2/Protoforge | Spotted Executioner 21621 | -2/Protoforge | Identified exit to Access 21631 | -2/Protoforge | Installed UFD Drillbomb at designated target 21631 | -2/Protoforge | UFD reported confirmed Drillbomb installation 21632 | -2/Protoforge | UFD began Drillbomb countdown 21732 | *** | Defending 0bPrime! Last Messages --------------- in T-10, a moment of silence for all those who spit bolts to get us here today. 21722_ N-04 Retriever inserts Scrap Suit into Forge Plexus. 21723_ 0bP_NET: PK-764! For learning about those Assembled things over in 0b10 the hard way, so we didn't have to. 21723_ N-04 Retriever inserts Ovr. Coil Gun into Forge Plexus. 21724_ 0bP_NET: Also Frameworth for that epic save with the barrage of overtuned dakka. Respect the dakka. 21725_ 0bP_NET: And S4-LTN's pet Recycler. I didn't mean it, but I was short on matter and it was a natural reflex. 21726_ 0bP_NET: Oh yeah, T-6 by the way. 21727_ 0bP_NET: LU-1G1, we know you're out there, digging away, so no moment of silence needed for you. 21728_ 0bP_NET: DD-05H though, you were a good one, we'll never forget the way you smashed your way west and just never stopped smashing. 21729_ 0bP_NET: Well my eulogizing is soon to be interrupted by scenes of half of Protoforge collapsing in on itself. Be careful out there. 21730_ 0bP_NET: T-2! 21731_ 0bP_NET: And that's a wrap. [Achievement: Robotopia] Map ----- +----------------------------------------------------+ | "% %"""""""""""""""""""""""""!*%%%%" " " " "#? | | " %"""""""""""""""""""""""""""%%[ " "% " "#? | | "% """""""""""""""""""""""""""%%""%% "" " "#? | | "" """""""""""""""""""""""""""! %""% " % "#? | | " """"""""""""""""""""""""""""" %!%! %= "#? | | " """"""""""""""""""""""""""""" % !%%|=!%"" #? | | %""""""""""""""""""""""""""""" %%*%!! " " #? | | """"""""""""""""""""""""""""" %%% *% [[ " #? | | """"""""""""""""""""""""""""" %SS!!% #? | | """""""""""""""""""""""""""""%% % %SS!=%| [ ## | | """"""""""""""""""""""""""""" % %%[[%/ !=!%! # | | " """"""""""""""""""""""""""""" " %%""%]%%=%= ! # | | " """"""""""""""""""""""""""""" %j %%%" %%%! %## | | """"""""""""""""""""""""""" s" %% /="=== #? | | % """"""""""""""""""""""""""" "s% % % % #? | | "" """"""""""""""""""""""""""" % % #? | | """""""""""""""""""""""""% m% %% * #? | | """"""""""""""""""""""" "" % "% #? | | """"""""""""""""""""" " =% % " #? | | %%" """"""""""""""""""" % s % % *!% " #? | | % % """""""""""""""""% % % %[%= #? | | %% % """""""""""""""%" % %% %!! #? | | % % """"""""" "" % % [[|! % ## | | %"%% %% %% %s s sSSE% "" %%* =" "# | | %%&% %% %"%" s % SS s% " %|! !%!%## | | %%% %% % % % %% " ss @sSS " % [" /%![s ## | | %% % % % %s "s"s """SS " % s "% [ E"E"" | | %% ""% """% sSSs" " E""%"%""% "" | | % "" ss SSs" s E "" | | " % E % SS % ""% " " " "" "& | | % % s SS %SS ! % % "& | | % " SS " s " ""%" % "" && | | """"" % " " " SS s " % %" ## | | " " % % " SS " " #? | | "" " s " #? | | """"" """ #? | | " " "" """ #? | | " """""""""" " " " """""""#? | | " """"############################;+++###########? | | #???????????????????????#"" ""#??????? | | ##?????????????????????###" "###????? | | #??????????????????????#"" ""#????? | | ##??????????????????????#"" ""#????? | | #???????????????????????#"" ""#????? | | ##???????????????????????#"Y Y"#????? | | ##????????????????????????#"" ""#????? | | ##?????????????????????????#"" ""#????? | | ##??????????????????????????#"" ""#????? | | #???????????????????????????###" "###????? | | ??????????????????????????????#"" ""#??????? | +----------------------------------------------------+ Best States ------------- Heat Dissipation 49 Energy Generation 43 Energy Capacity 350 Matter Stores 300 Matter Capacity 300 Sight Range 23 Robot Scan Range 16 Terrain Scan Density 10 ECM Strength 1 Additional Mass Support 9 Armor Coverage 450 Core Shielding 20 Propulsion Shielding 90 Evasion (%) 80 Targeting Accuracy 12 Melee Accuracy 12 Core Analysis 12 Offensive Hacking 42 Defensive Hacking 45 Authchip Count 2 Item Schematics ----------------- Aluminum Leg | -9/Materials | Scanalyzed Lrn. Sensor Array | -5/Factory | Hacked Assault Drone Bay | -5/Zhirov | Free Exp. Heat Sink | -5/Zhirov | Free Exp. Optical Array | -5/Zhirov | Free Imp. Arc Thrower | -5/Zhirov | Free Mni. Smartbomb Launcher | -4/Factory | Scanalyzed Coolant Network | -3/Testing | Archive Com. Mass Driver | -3/Testing | Archive Vibroblade | -3/Testing | Archive Exp. Thermal Defense Suite | -3/Testing | Archive Enh. Nova Cannon | -2/Research | Hacked Adv. KE Penetrator | -2/Protoforge | Archive Diametric Drive | -2/Protoforge | Archive Robot Schematics ------------------ S-43 Plague | -3/Testing | Archive B-74 Champion | -2/Quarantine | Archive Fabricated ------------ Nothing Repaired ---------- Aluminum Leg | 17% | -9/Materials Aluminum Leg | 44% | -9/Materials Aluminum Leg | 66% | -9/Materials Grenade Launcher | 55% | -9/Storage Imp. Assault Rifle | 42% | -9/Storage Aluminum Leg | 28% | -9/Storage Cld. Nuclear Pulse Thruster | 22% | -4/Factory Impulse Thruster | 15% | -3/Testing Cld. Nuclear Pulse Thruster | 34% | -3/Testing | Broken Studied --------- Lgt. Nuclear Core | -6/Factory | Hacked Lgt. Fission Core | -5/Factory | Hacked Katana | -5/Factory | Hacked Impulse Thruster | -4/Factory | Hacked Alien Tech Used ----------------- Integrated Reactor Transdimensional Reconstructor High-powered Transdimensional Reconstructor Sigix Broadsword Dimensional Node Initializer Terrabomb Subatomic Replicator Supercharged TR Achievements -------------- Dominance Asserted Inventory(Loot) King Drone Resistances Are Futile Robotopia Wiki Contributor Challenges ------------ None Game ------ Seed CompanionPiercelightMachine Manual? 0 Play Time 06:12:11 Cumulative 405.2 hours Start 2025.10.30 @ 06:53:08 End 2025.10.31 @ 23:13:16 Sessions 7 Manual Loads 0 Difficulty Rogue Special Mode None Game No. 151 Rogue 130 Adventurer 21 Explorer 0 Win Type 9 Total 19 Types 11/1/4/1/0/0/0/1/0/1 Lore% 58 Gallery% 72 Achievement% 48 Wizard Run 0 Options --------- Layout 1 ASCII 0 Keyboard 0 Movement Mouse Keybinds 0 Fullscreen 2 Font 32/SmallcapsGlow Map View 77x35 Zoom Use 0% Tactical HUD 1 Map Filters NONE Filters NONE Steam 1 RUN: 836e0ffe-8b3f-4eb3-b35b-204afab3a2f4